Workbook

Sheet Титул
AF1: Утверждаю
AF2: Директор
AF4: Белинский Олег Алексеевич
A5: на заседании Педагогического совета ГПОУ ТАПТ
A6: Протокол № | D6: от 28.06.2019 | AF6: 28.06.2019
A9: УЧЕБНЫЙ ПЛАН
A10: программы подготовки квалифицированых рабочих, служащих
A11: Государственное профессиональное образовательное учреждение "Тяжинский агропромышленный техникум"
A12: наименование образовательного учреждения (организации)
A13: по профессии среднего профессионального образования
A14: 430109 | G14: Повар, кондитер
A15: код | G15: наименование профессии
P16: основное общее образование
P17: Уровень образования, необходимый для приема на обучение
A19: квалификация: | G19: Повар Кондитер
G20: 20 7
G21: 21 7
G22: 22 7
G23: 23 7
G24: 24 7
G25: 25 7
A27: форма обучения | G27: Очная | P27: Нормативный срок освоения ОПОП | AC27: 3г 10м | AI27: год начала подготовки по УП | AS27: 2019
A29: профиль получаемого профессионального образования | U29: естественнонаучный
U30: при реализации программы среднего общего образования
A32: Приказ об утверждении ФГОС | L32: от | N32: 09.12.2016 | S32: № | U32: 1569
A34: Виды деятельности
A35: Приготовление и подготовка к реализации полуфабрикатов для блюд, кулинарных изделий разнообразного ассортимента
A36: Приготовление, оформление и подготовка к реализации горячих блюд, кулинарных изделий, закусок разнообразного ассортимента
A37: Приготовление, оформление и подготовка к реализации холодных блюд, кулинарных изделий, закусок разнообразного ассортимента
A38: Приготовление, оформление и подготовка к реализации холодных и горячих сладких блюд, десертов, напитков разнообразного ассортимент
A39: Приготовление, оформление и подготовка к реализации хлебобулочных, мучных кондитерских изделий разнообразного ассортимента
A40: Работа на контрольно-кассовой технике расчеты с покупателями

Sheet График
A2: 1 Календарный учебный график
A3: Курс | B3: Сентябрь | F3: 29 сен - 5 окт | G3: Октябрь | J3: 27 окт - 2 ноя | K3: Ноябрь | O3: Декабрь | S3: 29 дек - 4 янв | T3: Январь | W3: 26 янв - 1 фев | X3: Февраль | AA3: 23 фев - 1 мар | AB3: Март | AF3: 30 мар - 5 апр | AG3: Апрель | AJ3: 27 апр - 3 май | AK3: Май | AO3: Июнь | AS3: 29 июн - 5 июл | AT3: Июль | AW3: 27 июл -2 авг | AX3: Август
B4: 1 - 7 | C4: 8 - 14 | D4: 15 - 21 | E4: 22 - 28 | G4: 6 - 12 | H4: 13 - 19 | I4: 20 - 26 | K4: 3 - 9 | L4: 10 - 16 | M4: 17 - 23 | N4: 24 - 30 | O4: 1 - 7 | P4: 8 - 14 | Q4: 15 - 21 | R4: 22 - 28 | T4: 5 - 11 | U4: 12 - 18 | V4: 19 - 25 | X4: 2 - 8 | Y4: 9 - 15 | Z4: 16 - 22 | AB4: 2 - 8 | AC4: 9 - 15 | AD4: 16 - 22 | AE4: 23 - 29 | AG4: 6 - 12 | AH4: 13 - 19 | AI4: 20 - 26 | AK4: 4 - 10 | AL4: 11 - 17 | AM4: 18 - 24 | AN4: 25 - 31 | AO4: 1 - 7 | AP4: 8 - 14 | AQ4: 15 - 21 | AR4: 22 - 28 | AT4: 6 - 12 | AU4: 13 - 19 | AV4: 20 - 26 | AX4: 3 - 9 | AY4: 10 - 16 | AZ4: 17 - 23 | BA4: 24 - 31
B5: 1 | C5: 2 | D5: 3 | E5: 4 | F5: 5 | G5: 6 | H5: 7 | I5: 8 | J5: 9 | K5: 10 | L5: 11 | M5: 12 | N5: 13 | O5: 14 | P5: 15 | Q5: 16 | R5: 17 | S5: 18 | T5: 19 | U5: 20 | V5: 21 | W5: 22 | X5: 23 | Y5: 24 | Z5: 25 | AA5: 26 | AB5: 27 | AC5: 28 | AD5: 29 | AE5: 30 | AF5: 31 | AG5: 32 | AH5: 33 | AI5: 34 | AJ5: 35 | AK5: 36 | AL5: 37 | AM5: 38 | AN5: 39 | AO5: 40 | AP5: 41 | AQ5: 42 | AR5: 43 | AS5: 44 | AT5: 45 | AU5: 46 | AV5: 47 | AW5: 48 | AX5: 49 | AY5: 50 | AZ5: 51 | BA5: 52
A7: 0
A10: I
A13: II
A16: III
A19: IV
A22: V
A25: VI
A28: VII
A31: VIII
A34: IX
A37: X
A40: XI
A43: 0 | B43: * | C43: * | D43: * | E43: * | F43: * | G43: * | H43: * | I43: * | J43: * | K43: * | L43: * | M43: * | N43: * | O43: * | P43: * | Q43: * | R43: * | S43: * | T43: * | U43: * | V43: * | W43: * | X43: * | Y43: * | Z43: * | AA43: * | AB43: * | AC43: * | AD43: * | AE43: * | AF43: * | AG43: * | AH43: * | AI43: * | AJ43: * | AK43: * | AL43: * | AM43: * | AN43: * | AO43: * | AP43: * | AQ43: * | AR43: * | AS43: * | AT43: * | AU43: * | AV43: * | AW43: * | AX43: * | AY43: * | AZ43: * | BA43: *
A50: I | S50: К | T50: К | AP50: У | AQ50: У | AR50: У | AS50: К | AT50: К | AU50: К | AV50: К | AW50: К | AX50: К | AY50: К | AZ50: К | BA50: К
AR51: У
AR52: У
AR53: У
R54: А | AO54: У | AR54: А
R55: А | AO55: У | AR55: А
A57: II | P57: У | Q57: У | R57: У | S57: К | T57: К | AL57: У | AM57: У | AN57: У | AO57: У | AP57: А | AQ57: А | AR57: К | AS57: К | AT57: К | AU57: К | AV57: К | AW57: К | AX57: К | AY57: К | AZ57: К | BA57: К
AO58: У
AO59: У
AO60: У
AK61: У | AO61: А
AK62: У | AO62: А
A64: III | L64: У | M64: У | N64: У | O64: У | S64: К | T64: К | X64: У | Y64: У | Z64: У | AA64: У | AG64: У | AH64: У | AI64: У | AJ64: У | AK64: У | AL64: П | AM64: П | AN64: П | AO64: П | AP64: П | AQ64: П | AR64: К | AS64: К | AT64: К | AU64: К | AV64: К | AW64: К | AX64: К | AY64: К | AZ64: К | BA64: К
AK65: У
AF66: А | AK66: У
AF67: А | AK67: У
R68: А | AF68: У | AK68: А
R69: А | AF69: У | AK69: А
A71: IV | B71: П | C71: П | D71: П | E71: П | F71: П | G71: П | H71: П | I71: П | J71: П | K71: П | L71: П | M71: П | N71: П | O71: П | P71: П | Q71: А | R71: А | S71: К | T71: К | AC71: У | AD71: У | AE71: У | AF71: У | AG71: А | AH71: П | AI71: П | AJ71: П | AK71: П | AL71: П | AM71: П | AN71: П | AO71: Г | AP71: Г | AQ71: К | AR71: К | AS71: * | AT71: * | AU71: * | AV71: * | AW71: * | AX71: * | AY71: * | AZ71: * | BA71: *
AF72: У | AG72: А | AN72: П
AF73: У | AG73: А | AN73: П
AF74: У | AG74: П | AN74: А
AB75: У | AF75: А | AG75: П | AN75: А
AB76: У | AF76: А | AG76: П | AN76: А
A78: V | B78: * | C78: * | D78: * | E78: * | F78: * | G78: * | H78: * | I78: * | J78: * | K78: * | L78: * | M78: * | N78: * | O78: * | P78: * | Q78: * | R78: * | S78: * | T78: * | U78: * | V78: * | W78: * | X78: * | Y78: * | Z78: * | AA78: * | AB78: * | AC78: * | AD78: * | AE78: * | AF78: * | AG78: * | AH78: * | AI78: * | AJ78: * | AK78: * | AL78: * | AM78: * | AN78: * | AO78: * | AP78: * | AQ78: * | AR78: * | AS78: * | AT78: * | AU78: * | AV78: * | AW78: * | AX78: * | AY78: * | AZ78: * | BA78: *
A85: VI
A92: VII
A99: VIII
A106: IX
A113: X
A120: XI
A127: Обозначения: | H127: Обучение по циклам | Y127: У | Z127: Учебная практика
G129: А | H129: Промежуточная аттестация | Y129: П | Z129: Производственная практика | AR129: Г | AS129: Государственная итоговая аттестация
G131: К | H131: Каникулы | AR131: * | AS131: Неделя отсутствует
A133: 2 Сводные данные по бюджету времени
A135: Курс | B135: Обучение по дисциплинам и междисциплинарным курсам | T135: Промежуточная аттестация | AC135: Практики | AX135: ГИА | BD135: Каникулы | BG135: Всего | BJ135: Студентов | BN135: Групп
AC136: Учебная практика | AJ136: Производственная практика (по профилю специальности) | AQ136: Производственная практика (преддипломная) | AX136: Подго- товка | BA136: Прове- дение
B137: Всего | H137: 1 сем | N137: 2 сем | T137: Всего | W137: 1 сем | Z137: 2 сем | AC137: Всего | AF137: 1 сем | AH137: 2 сем | AJ137: Всего | AM137: 1 сем | AO137: 2 сем | AQ137: Всего | AT137: 1 сем | AV137: 2 сем
B138: нед. | E138: час. обяз. уч. занятий | H138: нед. | K138: час. обяз. уч. занятий | N138: нед. | Q138: час. обяз. уч. занятий | T138: нед. | W138: нед. | Z138: нед. | AC138: нед. | AF138: нед. | AH138: нед. | AJ138: нед. | AM138: нед. | AO138: нед. | AQ138: нед. | AT138: нед. | AV138: нед. | AX138: нед. | BA138: нед. | BD138: нед. | BG138: нед.
A139: I
A140: II
A141: III
A142: IV
A143: V
A144: VI
A145: VII
A146: VIII
A147: IX
A148: X
A149: XI
A150: Всего
A152: Курс | B152: Обучение по дисциплинам и междисциплинарным курсам, в том числе учебная практика | T152: Промежуточная аттестация | AC152: Практики | AQ152: ГИА | AW152: Каникулы | AZ152: Всего | BC152: Студентов | BG152: Групп
AC153: Производственная практика (по профилю специальности) | AJ153: Производственная практика (преддипломная) | AQ153: Подго- товка | AT153: Прове- дение
B154: Всего | H154: 1 сем | N154: 2 сем | T154: Всего | W154: 1 сем | Z154: 2 сем | AC154: Всего | AF154: 1 сем | AH154: 2 сем | AJ154: Всего | AM154: 1 сем | AO154: 2 сем
B155: нед. | E155: час. обяз. уч. занятий | H155: нед. | K155: час. обяз. уч. занятий | N155: нед. | Q155: час. обяз. уч. занятий | T155: нед. | W155: нед. | Z155: нед. | AC155: нед. | AF155: нед. | AH155: нед. | AJ155: нед. | AM155: нед. | AO155: нед. | AQ155: нед. | AT155: нед. | AW155: нед. | AZ155: нед.
A156: I
A157: II
A158: III
A159: IV
A160: V
A161: VI
A162: VII
A163: VIII
A164: IX
A165: X
A166: XI
A167: Всего
A169: Курс | B169: Обучение по циклам | T169: Промежуточная аттестация | AC169: Практики | AQ169: ГИА | AT169: Каникулы | AW169: Всего | AZ169: Студентов | BD169: Групп
AC170: Учебная практика (Производственное обучение) | AJ170: Производственная практика | AQ170: Прове- дение
B171: Всего | H171: 1 сем | N171: 2 сем | T171: Всего | W171: 1 сем | Z171: 2 сем | AC171: Всего | AF171: 1 сем | AH171: 2 сем | AJ171: Всего | AM171: 1 сем | AO171: 2 сем
B172: нед. | H172: нед. | N172: нед. | T172: нед. | W172: нед. | Z172: нед. | AC172: нед. | AF172: нед. | AH172: нед. | AJ172: нед. | AM172: нед. | AO172: нед. | AQ172: нед. | AT172: нед. | AW172: нед.
A173: I | B173: 37 1/3 | H173: 16 2/3 | N173: 20 2/3 | T173: 2/3 | W173: 1/3 | Z173: 1/3 | AC173: 3 | AH173: 3 | AT173: 11 | AW173: 52
A174: II | B174: 30 2/3 | H174: 14 | N174: 16 2/3 | T174: 2 1/3 | Z174: 2 1/3 | AC174: 7 | AF174: 3 | AH174: 4 | AT174: 12 | AW174: 52
A175: III | B175: 20 | H175: 12 2/3 | N175: 7 1/3 | T175: 1 | W175: 1/3 | Z175: 2/3 | AC175: 13 | AF175: 4 | AH175: 9 | AJ175: 6 | AO175: 6 | AT175: 12 | AW175: 52
A176: IV | B176: 8 | H176: 576 | N176: 8 | T176: 2 | W176: 1 | Z176: 1 | AC176: 4 | AH176: 4 | AJ176: 22 | AM176: 15 | AO176: 7 | AQ176: 2 | AT176: 2 | AW176: 43
A177: V
A178: Всего | B178: 96 | H178: 43 1/3 | N178: 52 2/3 | T178: 6 | W178: 1 2/3 | Z178: 4 1/3 | AC178: 27 | AF178: 7 | AH178: 20 | AJ178: 28 | AM178: 15 | AO178: 13 | AQ178: 2 | AT178: 35 | AW178: 199
A180: Курс | B180: Обучение по циклам и разделу "Физическая культура", в том числе учебная практика | T180: Промежуточная аттестация | AC180: Практики | AJ180: ГИА | AM180: Каникулы | AP180: Всего | AS180: Студентов | AW180: Групп
AC181: Производственная практика | AJ181: Прове- дение
B182: Всего | H182: 1 сем | N182: 2 сем | T182: Всего | W182: 1 сем | Z182: 2 сем | AC182: Всего | AF182: 1 сем | AH182: 2 сем
B183: нед. | E183: час. обяз. уч. зан. | H183: нед. | K183: час. обяз. уч. зан. | N183: нед. | Q183: час. обяз. уч. зан. | T183: нед. | W183: нед. | Z183: нед. | AC183: нед. | AF183: нед. | AH183: нед. | AJ183: нед. | AM183: нед. | AP183: нед.
A184: I
A185: II
A186: III
A187: IV
A188: V
A189: Всего

Sheet План
A1: Индекс | B1: Наименование циклов, разделов, дисциплин, профессиональных модулей, МДК, практик | C1: Формы промежуточной аттестации | I1: Учебная нагрузка обучающихся, ч. | S1: Распределение по курсам и семестрам | CU1: ЦК | CV1: Максимальная учебная нагрузка
S2: Курс 1 | AM2: Курс 2 | BG2: Курс 3 | CA2: Курс 4
C3: Экзамены | D3: Зачеты | E3: Диффер. зачеты | F3: Курсовые проекты | G3: Курсовые работы | H3: Другие | I3: Максимальная | J3: Самост.(с.р.+и.п.) | K3: Консультации | L3: Обязательная | Q3: Промежут. аттестация | R3: Индивид. проект (входит в с.р.) | S3: Семестр 1 | AC3: Семестр 2 | AM3: Семестр 3 | AW3: Семестр 4 | BG3: Семестр 5 | BQ3: Семестр 6 | CA3: Семестр 7 | CK3: Семестр 8
L4: Всего | M4: в том числе | S4: 16 2/3 нед | AC4: 20 2/3 (3 ) нед | AM4: 14 (3 ) нед | AW4: 16 2/3 (5 ) нед | BG4: 12 2/3 (4 ) нед | BQ4: 7 1/3 (16 ) нед | CA4: (16 ) нед | CK4: 8 (13 ) нед
M5: Лекции, уроки | N5: Пр. занятия | O5: Лаб. занятия | P5: Cеминар. занятия | S5: Максим. | T5: Самост. | U5: Консульт. | V5: Обязательная | W5: в том числе | AA5: Промежут. аттестация | AB5: Индивид. проект | AC5: Максим. | AD5: Самост. | AE5: Консульт. | AF5: Обязательная | AG5: в том числе | AK5: Промежут. аттестация | AL5: Индивид. проект | AM5: Максим. | AN5: Самост. | AO5: Консульт. | AP5: Обязательная | AQ5: в том числе | AU5: Промежут. аттестация | AV5: Индивид. проект | AW5: Максим. | AX5: Самост. | AY5: Консульт. | AZ5: Обязательная | BA5: в том числе | BE5: Промежут. аттестация | BF5: Индивид. проект | BG5: Максим. | BH5: Самост. | BI5: Консульт. | BJ5: Обязательная | BK5: в том числе | BO5: Промежут. аттестация | BP5: Индивид. проект | BQ5: Максим. | BR5: Самост. | BS5: Консульт. | BT5: Обязательная | BU5: в том числе | BY5: Промежут. аттестация | BZ5: Индивид. проект | CA5: Максим. | CB5: Самост. | CC5: Консульт. | CD5: Обязательная | CE5: в том числе | CI5: Промежут. аттестация | CJ5: Индивид. проект | CK5: Максим. | CL5: Самост. | CM5: Консульт. | CN5: Обязательная | CO5: в том числе | CS5: Промежут. аттестация | CT5: Индивид. проект | CV5: Обяз. часть | CW5: Вар. часть
W6: Лекции, уроки | X6: Пр.занятия | Y6: Лаб. занятия | Z6: Семинар. занятия | AG6: Лекции, уроки | AH6: Пр.занятия | AI6: Лаб. занятия | AJ6: Семинар. занятия | AQ6: Лекции, уроки | AR6: Пр.занятия | AS6: Лаб. занятия | AT6: Семинар. занятия | BA6: Лекции, уроки | BB6: Пр.занятия | BC6: Лаб. занятия | BD6: Семинар. занятия | BK6: Лекции, уроки | BL6: Пр.занятия | BM6: Лаб. занятия | BN6: Семинар. занятия | BU6: Лекции, уроки | BV6: Пр.занятия | BW6: Лаб. занятия | BX6: Семинар. занятия | CE6: Лекции, уроки | CF6: Пр.занятия | CG6: Лаб. занятия | CH6: Семинар. занятия | CO6: Лекции, уроки | CP6: Пр.занятия | CQ6: Лаб. занятия | CR6: Семинар. занятия
A7: 1 | B7: 2 | C7: 3 | D7: 4 | E7: 5 | F7: 6 | G7: 7 | H7: 8 | I7: 9 | J7: 11 | K7: 13 | L7: 14 | M7: 16 | N7: 17 | O7: 18 | P7: 19 | Q7: 23 | R7: 24 | S7: 25 | T7: 26 | U7: 27 | V7: 28 | W7: 29 | X7: 30 | Y7: 31 | Z7: 32 | AA7: 36 | AB7: 37 | AC7: 38 | AD7: 39 | AE7: 40 | AF7: 41 | AG7: 42 | AH7: 43 | AI7: 44 | AJ7: 45 | AK7: 49 | AL7: 50 | AM7: 51 | AN7: 52 | AO7: 53 | AP7: 54 | AQ7: 55 | AR7: 56 | AS7: 57 | AT7: 58 | AU7: 62 | AV7: 63 | AW7: 64 | AX7: 65 | AY7: 66 | AZ7: 67 | BA7: 68 | BB7: 69 | BC7: 70 | BD7: 71 | BE7: 75 | BF7: 76 | BG7: 77 | BH7: 78 | BI7: 79 | BJ7: 80 | BK7: 81 | BL7: 82 | BM7: 83 | BN7: 84 | BO7: 88 | BP7: 89 | BQ7: 90 | BR7: 91 | BS7: 92 | BT7: 93 | BU7: 94 | BV7: 95 | BW7: 96 | BX7: 97 | BY7: 101 | BZ7: 102 | CA7: 103 | CB7: 104 | CC7: 105 | CD7: 106 | CE7: 107 | CF7: 108 | CG7: 109 | CH7: 110 | CI7: 114 | CJ7: 115 | CK7: 116 | CL7: 117 | CM7: 118 | CN7: 119 | CO7: 120 | CP7: 121 | CQ7: 122 | CR7: 123 | CS7: 127 | CT7: 128 | CU7: 155 | CV7: 156 | CW7: 157
B9: Итого час/нед (с учетом консультаций в период обучения по циклам) | S9: 36 | V9: 34.92 | AC9: 36 | AF9: 35.49 | AM9: 36 | AP9: 35.29 | AW9: 36 | AZ9: 35.82 | BG9: 36 | BJ9: 33.48 | BQ9: 36 | BT9: 34.89 | CA9: 36 | CD9: 36 | CK9: 36 | CN9: 34.52
A10: ОД | B10: ОБЩЕОБРАЗОВАТЕЛЬНЫЙ ЦИКЛ | C10: 4 | D10: 3 | E10: 12 | I10: =I12+I23+I28 -> 2134 | J10: =J12+J23+J28 -> 30 | K10: 28 | L10: 2052 | M10: 1369 | N10: 658 | O10: 25 | P10: 0 | Q10: 24 | R10: 30 | S10: 440 | T10: 0 | U10: 2 | V10: 436 | W10: 261 | X10: 172 | Y10: 3 | Z10: 0 | AA10: 0 | AB10: 2 | AC10: 632 | AD10: 0 | AE10: 2 | AF10: 628 | AG10: 379 | AH10: 244 | AI10: 5 | AJ10: 0 | AK10: 0 | AL10: 2 | AM10: 392 | AN10: 0 | AO10: 0 | AP10: 392 | AQ10: 271 | AR10: 116 | AS10: 5 | AT10: 0 | AU10: 0 | AV10: 0 | AW10: 502 | AX10: 0 | AY10: 20 | AZ10: 440 | BA10: 334 | BB10: 94 | BC10: 12 | BD10: 0 | BE10: 24 | BF10: 18 | BG10: 168 | BH10: 0 | BI10: 4 | BJ10: 156 | BK10: 124 | BL10: 32 | BM10: 0 | BN10: 0 | BO10: 0 | BP10: 8 | BQ10: 0 | BR10: 0 | BS10: 0 | BT10: 0 | BU10: 0 | BV10: =BV12+BV23+BV28 -> 0 | BW10: 0 | BX10: 0 | BY10: 0 | BZ10: 0 | CA10: 0 | CB10: 0 | CC10: 0 | CD10: 0 | CE10: 0 | CF10: 0 | CG10: 0 | CH10: 0 | CI10: 0 | CJ10: 0 | CK10: 0 | CL10: 0 | CM10: 0 | CN10: 0 | CO10: 0 | CP10: 0 | CQ10: 0 | CR10: 0 | CS10: 0 | CT10: 0
A12: ОДБ | B12: Базовые дисциплины | C12: 2 | D12: 3 | E12: 7 | I12: =I13+I14+I15+I16+I17+I18+I19+I20+I21 -> 1330 | J12: =J13+J14+J15+J16+J17+J18+J19+J20+J21 -> 0 | K12: 8 | L12: 1310 | M12: 775 | N12: 524 | O12: 11 | P12: 0 | Q12: 12 | R12: 0 | S12: 313 | T12: 0 | U12: 0 | V12: 313 | W12: 172 | X12: 138 | Y12: 3 | Z12: 0 | AA12: 0 | AB12: 0 | AC12: 432 | AD12: 0 | AE12: 0 | AF12: 432 | AG12: 243 | AH12: 184 | AI12: 5 | AJ12: 0 | AK12: 0 | AL12: 0 | AM12: 264 | AN12: 0 | AO12: 0 | AP12: 264 | AQ12: 151 | AR12: 112 | AS12: 1 | AT12: 0 | AU12: 0 | AV12: 0 | AW12: 321 | AX12: 0 | AY12: 8 | AZ12: 301 | BA12: 209 | BB12: 90 | BC12: 2 | BD12: 0 | BE12: 12 | BF12: 0 | BG12: 0 | BH12: 0 | BI12: 0 | BJ12: 0 | BK12: 0 | BL12: 0 | BM12: 0 | BN12: 0 | BO12: 0 | BP12: 0 | BQ12: 0 | BR12: 0 | BS12: 0 | BT12: 0 | BU12: 0 | BV12: =BV13+BV14+BV15+BV16+BV17+BV18+BV19+BV20+BV21 -> 0 | BW12: 0 | BX12: 0 | BY12: 0 | BZ12: 0 | CA12: 0 | CB12: 0 | CC12: 0 | CD12: 0 | CE12: 0 | CF12: 0 | CG12: 0 | CH12: 0 | CI12: 0 | CJ12: 0 | CK12: 0 | CL12: 0 | CM12: 0 | CN12: 0 | CO12: 0 | CP12: 0 | CQ12: 0 | CR12: 0 | CS12: 0 | CT12: 0
A13: ОДБ.01 | B13: Русский язык | C13: 4 | I13: =J13+K13+Q13+L13 -> 88 | K13: 4 | L13: 78 | M13: 78 | Q13: 6 | S13: 17 | V13: 17 | W13: 17 | AC13: 22 | AF13: 22 | AG13: 22 | AM13: 18 | AP13: 18 | AQ13: 18 | AW13: 31 | AY13: 4 | AZ13: 21 | BA13: 21 | BE13: 6
A14: ОДБ.02 | B14: Литература | E14: 4 | I14: =J14+K14+Q14+L14 -> 236 | L14: 236 | M14: 236 | S14: 50 | V14: 50 | W14: 50 | AC14: 79 | AF14: 79 | AG14: 79 | AM14: 56 | AP14: 56 | AQ14: 56 | AW14: 51 | AZ14: 51 | BA14: 51
A15: ОДБ.03 | B15: Иностранный язык | E15: 4 | I15: 156 | L15: 156 | M15: 16 | N15: 140 | S15: 34 | V15: 34 | W15: 4 | X15: 30 | AC15: 46 | AF15: 46 | AG15: 4 | AH15: 42 | AM15: 42 | AP15: 42 | AQ15: 4 | AR15: 38 | AW15: 34 | AZ15: 34 | BA15: 4 | BB15: 30
A16: ОДБ.04 | B16: Математика | C16: 4 | I16: 260 | K16: 4 | L16: 250 | M16: 76 | N16: 174 | Q16: 6 | S16: 62 | V16: 62 | W16: 18 | X16: 44 | AC16: 80 | AF16: 80 | AG16: 24 | AH16: 56 | AM16: 50 | AP16: 50 | AQ16: 16 | AR16: 34 | AW16: 68 | AY16: 4 | AZ16: 58 | BA16: 18 | BB16: 40 | BE16: 6
A17: ОДБ.05 | B17: История | E17: 4 | I17: 156 | L17: 156 | M17: 156 | S17: 34 | V17: 34 | W17: 34 | AC17: 46 | AF17: 46 | AG17: 46 | AM17: 28 | AP17: 28 | AQ17: 28 | AW17: 48 | AZ17: 48 | BA17: 48
A18: ОДБ.06 | B18: Основы безопасности жизнедеятельности | E18: 2 | I18: 72 | L18: 72 | M18: 40 | N18: 32 | S18: 32 | V18: 32 | W18: 20 | X18: 12 | AC18: 40 | AF18: 40 | AG18: 20 | AH18: 20
A19: ОДБ.07 | B19: Физика | E19: 4 | I19: 156 | L19: 156 | M19: 132 | N19: 13 | O19: 11 | S19: 34 | V19: 34 | W19: 27 | X19: 4 | Y19: 3 | AC19: 58 | AF19: 58 | AG19: 46 | AH19: 7 | AI19: 5 | AM19: 28 | AP19: 28 | AQ19: 27 | AS19: 1 | AW19: 36 | AZ19: 36 | BA19: 32 | BB19: 2 | BC19: 2
A20: ОДБ.08 | B20: Астрономия | E20: 4 | I20: 35 | L20: 35 | M20: 35 | AW20: 35 | AZ20: 35 | BA20: 35
A21: ОДБ.09 | B21: Физическая культура | D21: 1-3 | E21: 4 | I21: 171 | L21: 171 | M21: 6 | N21: 165 | S21: 50 | V21: 50 | W21: 2 | X21: 48 | AC21: 61 | AF21: 61 | AG21: 2 | AH21: 59 | AM21: 42 | AP21: 42 | AQ21: 2 | AR21: 40 | AW21: 18 | AZ21: 18 | BB21: 18
A23: ОДП | B23: Профильные дисциплины | C23: 2 | E23: 1 | I23: =I24+I25+I26 -> 496 | J23: =J24+J25+J26 -> 0 | K23: 6 | L23: 478 | M23: 362 | N23: 102 | O23: 14 | P23: 0 | Q23: 12 | R23: 0 | S23: 89 | T23: 0 | U23: 0 | V23: 89 | W23: 55 | X23: 34 | Y23: 0 | Z23: 0 | AA23: 0 | AB23: 0 | AC23: 152 | AD23: 0 | AE23: 0 | AF23: 152 | AG23: 92 | AH23: 60 | AI23: 0 | AJ23: 0 | AK23: 0 | AL23: 0 | AM23: 98 | AN23: 0 | AO23: 0 | AP23: 98 | AQ23: 90 | AR23: 4 | AS23: 4 | AT23: 0 | AU23: 0 | AV23: 0 | AW23: 157 | AX23: 0 | AY23: 6 | AZ23: 139 | BA23: 125 | BB23: 4 | BC23: 10 | BD23: 0 | BE23: 12 | BF23: 0 | BG23: 0 | BH23: 0 | BI23: 0 | BJ23: 0 | BK23: 0 | BL23: 0 | BM23: 0 | BN23: 0 | BO23: 0 | BP23: 0 | BQ23: 0 | BR23: 0 | BS23: 0 | BT23: 0 | BU23: 0 | BV23: =BV24+BV25+BV26 -> 0 | BW23: 0 | BX23: 0 | BY23: 0 | BZ23: 0 | CA23: 0 | CB23: 0 | CC23: 0 | CD23: 0 | CE23: 0 | CF23: 0 | CG23: 0 | CH23: 0 | CI23: 0 | CJ23: 0 | CK23: 0 | CL23: 0 | CM23: 0 | CN23: 0 | CO23: 0 | CP23: 0 | CQ23: 0 | CR23: 0 | CS23: 0 | CT23: 0
A24: ОДП.01 | B24: Информатика | E24: 2 | I24: =J24+K24+L24+Q24 -> 100 | L24: 100 | M24: 34 | N24: 66 | S24: 52 | V24: 52 | W24: 22 | X24: 30 | AC24: 48 | AF24: 48 | AG24: 12 | AH24: 36
A25: ОДП.02 | B25: Химия | C25: 4 | I25: =J25+K25+L25+Q25 -> 232 | K25: 4 | L25: 222 | M25: 182 | N25: 26 | O25: 14 | Q25: 6 | S25: 37 | V25: 37 | W25: 33 | X25: 4 | AC25: 63 | AF25: 63 | AG25: 43 | AH25: 20 | AM25: 56 | AP25: 56 | AQ25: 50 | AR25: 2 | AS25: 4 | AW25: 76 | AY25: 4 | AZ25: 66 | BA25: 56 | BC25: 10 | BE25: 6
A26: ОДП.03 | B26: Биология | C26: 4 | I26: 164 | K26: 2 | L26: 156 | M26: 146 | N26: 10 | Q26: 6 | AC26: 41 | AF26: 41 | AG26: 37 | AH26: 4 | AM26: 42 | AP26: 42 | AQ26: 40 | AR26: 2 | AW26: 81 | AY26: 2 | AZ26: 73 | BA26: 69 | BB26: 4 | BE26: 6
A28: ПОО | B28: Предлагаемые ОО | E28: 4 | I28: =I29+I30+I31+I32 -> 308 | J28: =J29+J30+J31+J32 -> 30 | K28: 14 | L28: 264 | M28: 232 | N28: 32 | O28: 0 | P28: 0 | Q28: 0 | R28: 30 | S28: 38 | T28: 0 | U28: 2 | V28: 34 | W28: 34 | X28: 0 | Y28: 0 | Z28: 0 | AA28: 0 | AB28: 2 | AC28: 48 | AD28: 0 | AE28: 2 | AF28: 44 | AG28: 44 | AH28: 0 | AI28: 0 | AJ28: 0 | AK28: 0 | AL28: 2 | AM28: 30 | AN28: 0 | AO28: 0 | AP28: 30 | AQ28: 30 | AR28: 0 | AS28: 0 | AT28: 0 | AU28: 0 | AV28: 0 | AW28: 24 | AX28: 0 | AY28: 6 | AZ28: 0 | BA28: 0 | BB28: 0 | BC28: 0 | BD28: 0 | BE28: 0 | BF28: 18 | BG28: 168 | BH28: 0 | BI28: 4 | BJ28: 156 | BK28: 124 | BL28: 32 | BM28: 0 | BN28: 0 | BO28: 0 | BP28: 8 | BQ28: 0 | BR28: 0 | BS28: 0 | BT28: 0 | BU28: 0 | BV28: =BV29+BV30+BV31+BV32 -> 0 | BW28: 0 | BX28: 0 | BY28: 0 | BZ28: 0 | CA28: 0 | CB28: 0 | CC28: 0 | CD28: 0 | CE28: 0 | CF28: 0 | CG28: 0 | CH28: 0 | CI28: 0 | CJ28: 0 | CK28: 0 | CL28: 0 | CM28: 0 | CN28: 0 | CO28: 0 | CP28: 0 | CQ28: 0 | CR28: 0 | CS28: 0 | CT28: 0 | CV28: 308
A29: ПОО.01 | B29: География / Природа родного края | E29: 5 | I29: =J29+K29+L29+Q29 -> 78 | L29: 78 | M29: 56 | N29: 22 | BG29: 78 | BJ29: 78 | BK29: 56 | BL29: 22 | CV29: 78
A30: ПОО.02 | B30: Экология / Экологические основы природопользования | E30: 5 | I30: =J30+K30+L30+Q30 -> 78 | L30: 78 | M30: 68 | N30: 10 | BG30: 78 | BJ30: 78 | BK30: 68 | BL30: 10 | CV30: 78
A31: ПОО.03 | B31: Обществознание / История родного края | E31: 3 | I31: 108 | L31: 108 | M31: 108 | S31: 34 | V31: 34 | W31: 34 | AC31: 44 | AF31: 44 | AG31: 44 | AM31: 30 | AP31: 30 | AQ31: 30 | CV31: 108
A32: ПОО.04 | B32: Индивидуальный проект / Основы проектной деятельности | E32: 5 | I32: 44 | J32: 30 | K32: 14 | R32: 30 | S32: 4 | U32: 2 | AB32: 2 | AC32: 4 | AE32: 2 | AL32: 2 | AW32: 24 | AY32: 6 | BF32: 18 | BG32: 12 | BI32: 4 | BP32: 8 | CV32: 44
A33: ПП | B33: ПРОФЕССИОНАЛЬНАЯ ПОДГОТОВКА | C33: 18 | D33: 12 | E33: 13 | I33: =I35+I49 -> 3518 | J33: =J35+J49 -> 70 | K33: 92 | L33: 3236 | M33: 600 | N33: 656 | O33: 0 | P33: 0 | Q33: 120 | R33: 0 | S33: 172 | T33: 8 | U33: 12 | V33: 146 | W33: 80 | X33: 66 | Y33: 0 | Z33: 0 | AA33: 6 | AB33: 0 | AC33: 232 | AD33: 6 | AE33: 8 | AF33: 212 | AG33: 44 | AH33: 60 | AI33: 0 | AJ33: 0 | AK33: 6 | AL33: 0 | AM33: 220 | AN33: 6 | AO33: 6 | AP33: 208 | AQ33: 48 | AR33: 52 | AS33: 0 | AT33: 0 | AU33: 0 | AV33: 0 | AW33: 326 | AX33: 8 | AY33: 12 | AZ33: 300 | BA33: 74 | BB33: 82 | BC33: 0 | BD33: 0 | BE33: 6 | BF33: 0 | BG33: 444 | BH33: 13 | BI33: 23 | BJ33: 402 | BK33: 112 | BL33: 146 | BM33: 0 | BN33: 0 | BO33: 6 | BP33: 0 | BQ33: 828 | BR33: 15 | BS33: 11 | BT33: 778 | BU33: 102 | BV33: =BV35+BV49 -> 136 | BW33: 0 | BX33: 0 | BY33: 24 | BZ33: 0 | CA33: 576 | CB33: 0 | CC33: 0 | CD33: =CD35+CD49 -> 540 | CE33: 0 | CF33: 0 | CG33: 0 | CH33: 0 | CI33: 36 | CJ33: 0 | CK33: 720 | CL33: 14 | CM33: 20 | CN33: 650 | CO33: 140 | CP33: 114 | CQ33: 0 | CR33: 0 | CS33: 36 | CT33: 0 | CV33: 2620 | CW33: 898
A35: ОПЦ | B35: Общепрофессиональный цикл | C35: 1 | D35: 4 | E35: 7 | I35: =I36+I37+I38+I39+I40+I41+I42+I43+I44+I45+I46+I47 -> 534 | J35: =J36+J37+J38+J39+J40+J41+J42+J43+J44+J45+J46+J47 -> 32 | K35: 30 | L35: 466 | M35: 232 | N35: 234 | O35: 0 | P35: 0 | Q35: 6 | R35: 0 | S35: 172 | T35: 8 | U35: 12 | V35: 146 | W35: 80 | X35: 66 | Y35: 0 | Z35: 0 | AA35: 6 | AB35: 0 | AC35: 0 | AD35: 0 | AE35: 0 | AF35: 0 | AG35: 0 | AH35: 0 | AI35: 0 | AJ35: 0 | AK35: 0 | AL35: 0 | AM35: 0 | AN35: 0 | AO35: 0 | AP35: 0 | AQ35: 0 | AR35: 0 | AS35: 0 | AT35: 0 | AU35: 0 | AV35: 0 | AW35: 52 | AX35: 4 | AY35: 2 | AZ35: 46 | BA35: 22 | BB35: 24 | BC35: 0 | BD35: 0 | BE35: 0 | BF35: 0 | BG35: 128 | BH35: 7 | BI35: 7 | BJ35: 114 | BK35: 48 | BL35: 66 | BM35: 0 | BN35: 0 | BO35: 0 | BP35: 0 | BQ35: 98 | BR35: 7 | BS35: 5 | BT35: 86 | BU35: 34 | BV35: =BV36+BV37+BV38+BV39+BV40+BV41+BV42+BV43+BV44+BV45+BV46+BV47 -> 52 | BW35: 0 | BX35: 0 | BY35: 0 | BZ35: 0 | CA35: 0 | CB35: 0 | CC35: 0 | CD35: 0 | CE35: 0 | CF35: 0 | CG35: 0 | CH35: 0 | CI35: 0 | CJ35: 0 | CK35: 84 | CL35: 6 | CM35: 4 | CN35: 74 | CO35: 48 | CP35: 26 | CQ35: 0 | CR35: 0 | CS35: 0 | CT35: 0 | CV35: 368 | CW35: 166
A36: ОП.01 | B36: Основы микробиологии, физиологии питания, санитарии и гигиены | E36: 1 | I36: =J36+K36+L36+Q36 -> 46 | J36: 2 | K36: 4 | L36: 40 | M36: 22 | N36: 18 | S36: 46 | T36: 2 | U36: 4 | V36: 40 | W36: 22 | X36: 18 | CU36: 3 | CV36: 36 | CW36: 10
A37: ОП.02 | B37: Основы товароведения продовольственных товаров | E37: 1 | I37: =J37+K37+L37+Q37 -> 46 | J37: 2 | K37: 4 | L37: 40 | M37: 22 | N37: 18 | S37: 46 | T37: 2 | U37: 4 | V37: 40 | W37: 22 | X37: 18 | CU37: 3 | CV37: 36 | CW37: 10
A38: ОП.03 | B38: Техническое оснащение и организация рабочего места | C38: 1 | I38: 80 | J38: 4 | K38: 4 | L38: 66 | M38: 36 | N38: 30 | Q38: 6 | S38: 80 | T38: 4 | U38: 4 | V38: 66 | W38: 36 | X38: 30 | AA38: 6 | CU38: 3 | CV38: 44 | CW38: 36
A39: ОП.04 | B39: Экономические и правовые основы профессиональной деятельности | E39: 5 | I39: 36 | J39: 2 | K39: 2 | L39: 32 | M39: 24 | N39: 8 | BG39: 36 | BH39: 2 | BI39: 2 | BJ39: 32 | BK39: 24 | BL39: 8 | CU39: 3 | CV39: 36
A40: ОП.05 | B40: Основы калькуляции и учета | E40: 5 | I40: 46 | J40: 2 | K40: 4 | L40: 40 | M40: 24 | N40: 16 | BG40: 46 | BH40: 2 | BI40: 4 | BJ40: 40 | BK40: 24 | BL40: 16 | CU40: 3 | CV40: 32 | CW40: 14
A41: ОП.06 | B41: Охрана труда | E41: 4 | I41: 36 | J41: 2 | K41: 2 | L41: 32 | M41: 22 | N41: 10 | AW41: 36 | AX41: 2 | AY41: 2 | AZ41: 32 | BA41: 22 | BB41: 10 | CU41: 3 | CV41: 36
A42: ОП.07 | B42: Иностранный язык в профессиональной деятельности | E42: 6 | I42: 36 | J42: 2 | K42: 2 | L42: 32 | N42: 32 | BG42: 20 | BH42: 1 | BI42: 1 | BJ42: 18 | BL42: 18 | BQ42: 16 | BR42: 1 | BS42: 1 | BT42: 14 | BV42: 14 | CU42: 1 | CV42: 36
A43: ОП.08 | B43: Безопасность жизнедеятельности | E43: 8 | I43: 36 | J43: 2 | K43: 2 | L43: 32 | M43: 26 | N43: 6 | CK43: 36 | CL43: 2 | CM43: 2 | CN43: 32 | CO43: 26 | CP43: 6 | CU43: 1 | CV43: 36
A44: ОП.09 | B44: Физическая культура | D44: 8 | I44: 76 | J44: 8 | L44: 68 | N44: 68 | AW44: 16 | AX44: 2 | AZ44: 14 | BB44: 14 | BG44: 26 | BH44: 2 | BJ44: 24 | BL44: 24 | BQ44: 18 | BR44: 2 | BT44: 16 | BV44: 16 | CK44: 16 | CL44: 2 | CN44: 14 | CP44: 14 | CV44: 76
A45: ОП.10 | B45: Русский язык и культура речи | D45: 6 | I45: 32 | J45: 2 | K45: 2 | L45: 28 | M45: 22 | N45: 6 | BQ45: 32 | BR45: 2 | BS45: 2 | BT45: 28 | BU45: 22 | BV45: 6 | CU45: 1 | CW45: 32
A46: ОП.11 | B46: Основы эффективного поведения на рынке труда | D46: 8 | I46: 32 | J46: 2 | K46: 2 | L46: 28 | M46: 22 | N46: 6 | CK46: 32 | CL46: 2 | CM46: 2 | CN46: 28 | CO46: 22 | CP46: 6 | CU46: 1 | CW46: 32
A47: ОП.12 | B47: Основы предпринимательской деятельности | D47: 6 | I47: 32 | J47: 2 | K47: 2 | L47: 28 | M47: 12 | N47: 16 | BQ47: 32 | BR47: 2 | BS47: 2 | BT47: 28 | BU47: 12 | BV47: 16 | CU47: 3 | CW47: 32
A49: ПЦ | B49: Профессиональный цикл | C49: 17 | D49: 8 | E49: 6 | I49: =I51+I63+I75+I87+I99+I111 -> 2984 | J49: =J51+J63+J75+J87+J99+J111 -> 38 | K49: =K51+K63+K75+K87+K99+K111 -> 62 | L49: 2770 | M49: =M51+M63+M75+M87+M99+M111 -> 368 | N49: 422 | O49: 0 | P49: 0 | Q49: 114 | R49: 0 | S49: 0 | T49: 0 | U49: 0 | V49: 0 | W49: 0 | X49: 0 | Y49: 0 | Z49: 0 | AA49: 0 | AB49: 0 | AC49: 232 | AD49: 6 | AE49: 8 | AF49: 212 | AG49: 44 | AH49: 60 | AI49: 0 | AJ49: 0 | AK49: 6 | AL49: 0 | AM49: 220 | AN49: 6 | AO49: 6 | AP49: 208 | AQ49: 48 | AR49: 52 | AS49: 0 | AT49: 0 | AU49: 0 | AV49: 0 | AW49: 274 | AX49: 4 | AY49: 10 | AZ49: 254 | BA49: 52 | BB49: 58 | BC49: 0 | BD49: 0 | BE49: 6 | BF49: 0 | BG49: 316 | BH49: 6 | BI49: 16 | BJ49: 288 | BK49: 64 | BL49: 80 | BM49: 0 | BN49: 0 | BO49: 6 | BP49: 0 | BQ49: 730 | BR49: 8 | BS49: 6 | BT49: 692 | BU49: 68 | BV49: =BV51+BV63+BV75+BV87+BV99+BV111 -> 84 | BW49: 0 | BX49: 0 | BY49: 24 | BZ49: 0 | CA49: 576 | CB49: 0 | CC49: 0 | CD49: 540 | CE49: 0 | CF49: 0 | CG49: 0 | CH49: 0 | CI49: 36 | CJ49: 0 | CK49: 636 | CL49: 8 | CM49: 16 | CN49: 576 | CO49: 92 | CP49: 88 | CQ49: 0 | CR49: 0 | CS49: 36 | CT49: 0 | CV49: =CV51+CV63+CV75+CV87+CV99 -> 2252 | CW49: 732
A51: ПМ.01 | B51: Приготовление и подготовка к реализации полуфабрикатов для блюд, кулинарных изделий разнообразного ассортимента | C51: 3 | D51: 1 | E51: 1 | I51: =J51+K51+L51+Q51 -> 376 | J51: =T51+AD51+BR51+CB51 -> 6 | K51: =U51+AE51+AO51+AY51+BS51+CC51 -> 8 | L51: =V51+AF51+AP51+AZ51+BJ51+BT51+CD51 -> 356 | M51: =W51+AG51+AQ51+BA51+BK51+BU51+CE51 -> 44 | N51: =X51+AH51+AR51+BB51+BL51+BV51+CF51 -> 60 | O51: =Y51+AI51+AS51+BC51+BM51+BW51+CG51 -> 0 | P51: 0 | Q51: 6 | R51: 0 | S51: =S53+S54 -> 0 | T51: 0 | U51: 0 | V51: 0 | W51: 0 | X51: 0 | Y51: 0 | Z51: 0 | AA51: 0 | AB51: 0 | AC51: =AD51+AE51+AF51+AK51 -> 232 | AD51: 6 | AE51: 8 | AF51: =AF53+AF54+AF56+AF58 -> 212 | AG51: 44 | AH51: 60 | AI51: 0 | AJ51: 0 | AK51: =AK53+AK54 -> 6 | AL51: 0 | AM51: 0 | AN51: 0 | AO51: 0 | AP51: 0 | AQ51: 0 | AR51: 0 | AS51: 0 | AT51: 0 | AU51: 0 | AV51: 0 | AW51: 0 | AX51: 0 | AY51: 0 | AZ51: 0 | BA51: 0 | BB51: 0 | BC51: 0 | BD51: 0 | BE51: 0 | BF51: 0 | BG51: 0 | BH51: 0 | BI51: 0 | BJ51: 0 | BK51: 0 | BL51: 0 | BM51: 0 | BN51: 0 | BO51: 0 | BP51: 0 | BQ51: =BQ53+BQ54+BT51 -> 108 | BR51: 0 | BS51: 0 | BT51: =BT53+BT54+BT56+BT58 -> 108 | BU51: 0 | BV51: =BV53+BV54 -> 0 | BW51: 0 | BX51: 0 | BY51: 0 | BZ51: 0 | CA51: =CA53+54:54+CD51 -> 36 | CB51: 0 | CC51: 0 | CD51: =CD53+CD54+CD56+CD58 -> 36 | CE51: 0 | CF51: 0 | CG51: 0 | CH51: 0 | CI51: 0 | CJ51: 0 | CK51: 0 | CL51: 0 | CM51: 0 | CN51: 0 | CO51: 0 | CP51: 0 | CQ51: 0 | CR51: 0 | CS51: 0 | CT51: 0 | CV51: 291 | CW51: 85
A53: МДК.01.01 | B53: Организация приготовления, подготовки к реализации и хранения кулинарных полуфабрикатов | C53: 2 | I53: 36 | J53: 2 | K53: 3 | L53: 28 | M53: 10 | N53: 18 | Q53: 3 | AC53: 36 | AD53: 2 | AE53: 3 | AF53: 28 | AG53: 10 | AH53: 18 | AK53: 3 | CU53: 3 | CV53: 36
A54: МДК.01.02 | B54: Процессы приготовления, подготовки к реализации кулинарных полуфабрикатов | C54: 2 | I54: 88 | J54: 4 | K54: 5 | L54: 76 | M54: 34 | N54: 42 | Q54: 3 | AC54: 88 | AD54: 4 | AE54: 5 | AF54: 76 | AG54: 34 | AH54: 42 | AK54: 3 | CU54: 3 | CV54: 75 | CW54: 13
A56: УП.01.01 | B56: Учебная практика по приготовлению и подготовке к реализации полуфабрикатов для блюд, кулинарных изделий разнообразного ассортимента | D56: 6 | F56: РП | H56: час | I56: 144 | L56: 144 | M56: нед | N56: 4 | S56: час | W56: нед | AC56: час | AF56: 108 | AG56: нед | AH56: 3 | AM56: час | AQ56: нед | AW56: час | BA56: нед | BG56: час | BK56: нед | BQ56: час | BT56: 36 | BU56: нед | BV56: 1 | CA56: час | CE56: нед | CK56: час | CO56: нед | CU56: 3 | CV56: 108 | CW56: 36
A58: ПП.01.01 | B58: Производственная практика по приготовлению и подготовке к реализации полуфабрикатов для блюд, кулинарных изделий разнообразного ассортимента | E58: 7 | F58: РП | H58: час | I58: 108 | L58: 108 | M58: нед | N58: 3 | S58: час | W58: нед | AC58: час | AG58: нед | AM58: час | AQ58: нед | AW58: час | BA58: нед | BG58: час | BK58: нед | BQ58: час | BT58: 72 | BU58: нед | BV58: 2 | CA58: час | CD58: 36 | CE58: нед | CF58: 1 | CK58: час | CO58: нед | CU58: 3 | CV58: 72 | CW58: 36
A60: ПM.01.ЭК | B60: Квалификационный экзамен | C60: 7
B61: Всего часов по МДК | I61: =I53+I54 -> 124 | L61: =L53+L54 -> 104
A63: ПМ.02 | B63: Приготовление, оформление и подготовка к реализации горячих блюд, кулинарных изделий, закусок разнообразного ассортимента | C63: 3 | D63: 3 | E63: 1 | I63: =J63+K63+L63+Q63 -> 902 | J63: =T63+AD63+AN63+AX63+BH63+BR63+CB63 -> 10 | K63: =U63+AE63+AO63+AY63+BI63+BS63+CC63 -> 16 | L63: =V63+AF63+AP63+AZ63+BJ63+BT63+CD63 -> 858 | M63: =W63+AG63+AQ63+BA63+BK63+BU63+CE63 -> 100 | N63: 110 | O63: 0 | P63: 0 | Q63: =AA63+AK63+AU63+BE63+BO63+BY63+CI63 -> 18 | R63: 0 | S63: =S65+S66 -> 0 | T63: 0 | U63: 0 | V63: 0 | W63: 0 | X63: 0 | Y63: 0 | Z63: 0 | AA63: 0 | AB63: 0 | AC63: 0 | AD63: 0 | AE63: 0 | AF63: 0 | AG63: 0 | AH63: 0 | AI63: 0 | AJ63: 0 | AK63: 0 | AL63: 0 | AM63: =AM65+AM66+AP68+AP70 -> 220 | AN63: 6 | AO63: 6 | AP63: =AP65+AP66+AP68+AP70 -> 208 | AQ63: 48 | AR63: 52 | AS63: 0 | AT63: 0 | AU63: 0 | AV63: 0 | AW63: =AW65+AW66+AZ68+AZ70 -> 274 | AX63: 4 | AY63: 10 | AZ63: =AZ65+AZ66+AZ68+AZ70 -> 254 | BA63: 52 | BB63: 58 | BC63: 0 | BD63: 0 | BE63: 6 | BF63: 0 | BG63: 0 | BH63: 0 | BI63: 0 | BJ63: 0 | BK63: 0 | BL63: 0 | BM63: 0 | BN63: 0 | BO63: 0 | BP63: 0 | BQ63: =BQ65+BQ66+BT68+BT70 -> 144 | BR63: 0 | BS63: 0 | BT63: =BT65+BT66+BT68+BT70 -> 144 | BU63: 0 | BV63: =BV65+BV66 -> 0 | BW63: 0 | BX63: 0 | BY63: 0 | BZ63: 0 | CA63: =CA65+CA66+CD68+CD70+CI63 -> 264 | CB63: 0 | CC63: 0 | CD63: =CD65+CD66+CD68+CD70 -> 252 | CE63: 0 | CF63: 0 | CG63: 0 | CH63: 0 | CI63: =CI65+CI66+CI72 -> 12 | CJ63: 0 | CK63: 0 | CL63: 0 | CM63: 0 | CN63: 0 | CO63: 0 | CP63: 0 | CQ63: 0 | CR63: 0 | CS63: 0 | CT63: 0 | CV63: 718 | CW63: 184
A65: МДК.02.01 | B65: Организация приготовления, подготовки к реализации и хранения горячих блюд, кулинарных изделий и закусок разнообразного ассортимента | C65: 4 | D65: 3 | I65: 36 | J65: 2 | K65: 3 | L65: 28 | M65: 12 | N65: 16 | Q65: 3 | AM65: 32 | AN65: 2 | AO65: 2 | AP65: 28 | AQ65: 12 | AR65: 16 | AW65: 4 | AY65: 1 | BE65: 3 | CU65: 3 | CV65: 36
A66: МДК.02.02 | B66: Процессы приготовления, подготовки к реализации горячих блюд, кулинарных изделий и закусок разнообразного ассортимента | C66: 4 | D66: 3 | I66: 206 | J66: 8 | K66: 13 | L66: 182 | M66: 88 | N66: 94 | Q66: 3 | AM66: 80 | AN66: 4 | AO66: 4 | AP66: 72 | AQ66: 36 | AR66: 36 | AW66: 126 | AX66: 4 | AY66: 9 | AZ66: 110 | BA66: 52 | BB66: 58 | BE66: 3 | CU66: 3 | CV66: 130 | CW66: 76
A68: УП.02.01 | B68: Учебная практика по приготовлению, оформлению и подготовке к реализации горячих блюд, кулинарных изделий, закусок разнообразного ассортимента | D68: 6 | F68: РП | H68: час | I68: 288 | L68: 288 | M68: нед | N68: 8 | S68: час | W68: нед | AC68: час | AG68: нед | AM68: час | AP68: 108 | AQ68: нед | AR68: 3 | AW68: час | AZ68: 144 | BA68: нед | BB68: 4 | BG68: час | BK68: нед | BQ68: час | BT68: 36 | BU68: нед | BV68: 1 | CA68: час | CE68: нед | CK68: час | CO68: нед | CU68: 3 | CV68: 252 | CW68: 36
A70: ПП.02.01 | B70: Производственная практика по приготовлению, оформлению и подготовке к реализации горячих блюд, кулинарных изделий, закусок разнообразного ассортимента | E70: 7 | F70: РП | H70: час | I70: 360 | L70: 360 | M70: нед | N70: 10 | S70: час | W70: нед | AC70: час | AG70: нед | AM70: час | AQ70: нед | AW70: час | BA70: нед | BG70: час | BK70: нед | BQ70: час | BT70: 108 | BU70: нед | BV70: 3 | CA70: час | CD70: 252 | CE70: нед | CF70: 7 | CK70: час | CO70: нед | CU70: 3 | CV70: 288 | CW70: 72
A72: ПM.02.ЭК | B72: Квалификационный экзамен | C72: 7 | I72: 12 | Q72: 12 | CA72: 12 | CI72: 12 | CV72: 12
B73: Всего часов по МДК | I73: =I65+I66 -> 242 | L73: =L65+L66 -> 210
A75: ПМ.03 | B75: Приготовление, оформление и подготовка к реализации холодных блюд, кулинарных изделий, закусок разнообразного ассортимента | C75: 3 | D75: 1 | E75: 1 | I75: =J75+K75+L75+Q75 -> 508 | J75: =T75+AD75+AN75+AX75+BH75+BR75+CB75+CL75 -> 6 | K75: =U75+AE75+AO75+AY75+BI75+BS75+CC75+CM75 -> 16 | L75: 468 | M75: 64 | N75: 80 | O75: 0 | P75: 0 | Q75: 18 | R75: 0 | S75: =S77+S78 -> 0 | T75: 0 | U75: 0 | V75: 0 | W75: 0 | X75: 0 | Y75: 0 | Z75: 0 | AA75: 0 | AB75: 0 | AC75: 0 | AD75: 0 | AE75: 0 | AF75: 0 | AG75: 0 | AH75: 0 | AI75: 0 | AJ75: 0 | AK75: 0 | AL75: 0 | AM75: 0 | AN75: 0 | AO75: 0 | AP75: 0 | AQ75: 0 | AR75: 0 | AS75: 0 | AT75: 0 | AU75: 0 | AV75: 0 | AW75: 0 | AX75: 0 | AY75: 0 | AZ75: 0 | BA75: 0 | BB75: 0 | BC75: 0 | BD75: 0 | BE75: 0 | BF75: 0 | BG75: =BG77+BG78+BJ80+BJ82 -> 316 | BH75: 6 | BI75: 16 | BJ75: =BJ77+BJ78+BJ80+BJ82 -> 288 | BK75: 64 | BL75: 80 | BM75: 0 | BN75: 0 | BO75: 6 | BP75: 0 | BQ75: =BQ77+BQ78+BT80+BT82+BZ75 -> 36 | BR75: 0 | BS75: 0 | BT75: =BT77+BT78+BT80+BT82 -> 36 | BU75: 0 | BV75: =BV77+BV78 -> 0 | BW75: 0 | BX75: 0 | BY75: 0 | BZ75: 0 | CA75: =CA77+CA78+CI75+CD80+CD82 -> 156 | CB75: 0 | CC75: 0 | CD75: =CD77+CD78+CD80+CD82 -> 144 | CE75: 0 | CF75: 0 | CG75: 0 | CH75: 0 | CI75: =CI77+CI78+CI84 -> 12 | CJ75: 0 | CK75: 0 | CL75: 0 | CM75: 0 | CN75: 0 | CO75: 0 | CP75: 0 | CQ75: 0 | CR75: 0 | CS75: 0 | CT75: 0 | CV75: 401 | CW75: 107
A77: МДК.03.01 | B77: Организация приготовления, подготовки к реализации и хранения холодных блюд, кулинарных изделий и закусок разнообразного ассортимента | C77: 5 | I77: 36 | J77: 2 | K77: 4 | L77: 28 | M77: 12 | N77: 16 | Q77: 2 | BG77: 36 | BH77: 2 | BI77: 4 | BJ77: 28 | BK77: 12 | BL77: 16 | BO77: 2 | CU77: 3 | CV77: 36
A78: МДК.03.02 | B78: Процессы приготовления, подготовки к реализации холодных блюд, кулинарных изделий и закусок разнообразного ассортимента | C78: 5 | I78: 136 | J78: 4 | K78: 12 | L78: 116 | M78: 52 | N78: 64 | Q78: 4 | BG78: 136 | BH78: 4 | BI78: 12 | BJ78: 116 | BK78: 52 | BL78: 64 | BO78: 4 | CU78: 3 | CV78: 101 | CW78: 35
A80: УП.03.01 | B80: Учебная практика по приготовлению, оформлению и подготовке к реализации холодных блюд, кулинарных изделий, закусок разнообразного ассортимента | D80: 6 | F80: РП | H80: час | I80: 180 | L80: 180 | M80: нед | N80: 5 | S80: час | W80: нед | AC80: час | AG80: нед | AM80: час | AQ80: нед | AW80: час | BA80: нед | BG80: час | BJ80: 144 | BK80: нед | BL80: 4 | BQ80: час | BT80: 36 | BU80: нед | BV80: 1 | CA80: час | CE80: нед | CK80: час | CO80: нед | CU80: 3 | CV80: 144 | CW80: 36
A82: ПП.03.01 | B82: Производственная практика по приготовлению, оформлению и подготовке к реализации холодных блюд, кулинарных изделий, закусок разнообразного ассортимента | E82: 7 | F82: РП | H82: час | I82: 144 | L82: 144 | M82: нед | N82: 4 | S82: час | W82: нед | AC82: час | AG82: нед | AM82: час | AQ82: нед | AW82: час | BA82: нед | BG82: час | BK82: нед | BQ82: час | BU82: нед | CA82: час | CD82: 144 | CE82: нед | CF82: 4 | CK82: час | CO82: нед | CU82: 3 | CV82: 108 | CW82: 36
A84: ПM.03.ЭК | B84: Квалификационный экзамен | C84: 7 | I84: 12 | Q84: 12 | CA84: 12 | CI84: 12 | CV84: 12
B85: Всего часов по МДК | I85: =I77+I78 -> 172 | L85: =L77+L78 -> 144
A87: ПМ.04 | B87: Приготовление, оформление и подготовка к реализации холодных и горячих сладких блюд, десертов, напитков разнообразного ассортимента | C87: 3 | D87: 1 | E87: 1 | I87: =J87+K87+L87+Q87 -> 428 | J87: =T87+AD87+AN87+AX87+BH87+BR87+CB87+CL87 -> 4 | K87: =U87+AE87+AO87+AY87+BI87+BS87+CC87+CM87 -> 2 | L87: 404 | M87: 52 | N87: 64 | O87: 0 | P87: 0 | Q87: 18 | R87: 0 | S87: =S89+S90 -> 0 | T87: 0 | U87: 0 | V87: 0 | W87: 0 | X87: 0 | Y87: 0 | Z87: 0 | AA87: 0 | AB87: 0 | AC87: 0 | AD87: 0 | AE87: 0 | AF87: 0 | AG87: 0 | AH87: 0 | AI87: 0 | AJ87: 0 | AK87: 0 | AL87: 0 | AM87: 0 | AN87: 0 | AO87: 0 | AP87: 0 | AQ87: 0 | AR87: 0 | AS87: 0 | AT87: 0 | AU87: 0 | AV87: 0 | AW87: 0 | AX87: 0 | AY87: 0 | AZ87: 0 | BA87: 0 | BB87: 0 | BC87: 0 | BD87: 0 | BE87: 0 | BF87: 0 | BG87: 0 | BH87: 0 | BI87: 0 | BJ87: 0 | BK87: 0 | BL87: 0 | BM87: 0 | BN87: 0 | BO87: 0 | BP87: 0 | BQ87: =BR87+BS87+BT87+BY87 -> 308 | BR87: 4 | BS87: 2 | BT87: =BT89+BT90+BT92+BT94 -> 296 | BU87: 52 | BV87: =BV89+BV90 -> 64 | BW87: 0 | BX87: 0 | BY87: 6 | BZ87: 0 | CA87: =CB87+CC87+CD87+CI87 -> 120 | CB87: 0 | CC87: 0 | CD87: =CD89+CD90+CD92+CD94 -> 108 | CE87: 0 | CF87: 0 | CG87: 0 | CH87: 0 | CI87: =CI89+CI90+CI96 -> 12 | CJ87: 0 | CK87: 0 | CL87: 0 | CM87: 0 | CN87: 0 | CO87: 0 | CP87: 0 | CQ87: 0 | CR87: 0 | CS87: 0 | CT87: 0 | CV87: 324 | CW87: 104
A89: МДК.04.01 | B89: Организация процессов приготовления, подготовки к реализации и хранения холодных и горячих десертов, напитков сложного ассортимента | C89: 6 | I89: 32 | J89: 2 | L89: 28 | M89: 12 | N89: 16 | Q89: 2 | BQ89: 32 | BR89: 2 | BT89: 28 | BU89: 12 | BV89: 16 | BY89: 2 | CU89: 3 | CV89: 32
A90: МДК.04.02 | B90: Процессы приготовления и подготовки к реализации холодных и горячих сладких блюд, десертов разнообразного ассортимента | C90: 6 | I90: 96 | J90: 2 | K90: 2 | L90: 88 | M90: 40 | N90: 48 | Q90: 4 | BQ90: 96 | BR90: 2 | BS90: 2 | BT90: 88 | BU90: 40 | BV90: 48 | BY90: 4 | CU90: 3 | CV90: 64 | CW90: 32
A92: УП.04.01 | B92: Учебная практика по приготовлению, оформлению и подготовке к реализации холодных и горячих сладких блюд, десертов, напитков разнообразного ассортимента | D92: 6 | F92: РП | H92: час | I92: 180 | L92: 180 | M92: нед | N92: 5 | S92: час | W92: нед | AC92: час | AG92: нед | AM92: час | AQ92: нед | AW92: час | BA92: нед | BG92: час | BK92: нед | BQ92: час | BT92: 180 | BU92: нед | BV92: 5 | CA92: час | CE92: нед | CK92: час | CO92: нед | CU92: 3 | CV92: 144 | CW92: 36
A94: ПП.04.01 | B94: Производственная практика по приготовлению, оформлению и подготовке к реализации холодных и горячих сладких блюд, десертов, напитков разнообразного ассортимента | E94: 7 | F94: РП | H94: час | I94: 108 | L94: 108 | M94: нед | N94: 3 | S94: час | W94: нед | AC94: час | AG94: нед | AM94: час | AQ94: нед | AW94: час | BA94: нед | BG94: час | BK94: нед | BQ94: час | BU94: нед | CA94: час | CD94: 108 | CE94: нед | CF94: 3 | CK94: час | CO94: нед | CU94: 3 | CV94: 72 | CW94: 36
A96: ПM.04.ЭК | B96: Квалификационный экзамен | C96: 7 | I96: 12 | Q96: 12 | CA96: 12 | CI96: 12 | CV96: 12
B97: Всего часов по МДК | I97: 128 | L97: 116
A99: ПМ.05 | B99: Приготовление, оформление и подготовка к реализации хлебобулочных, мучных кондитерских изделий разнообразного ассортимента | C99: 3 | D99: 1 | E99: 1 | I99: =J99+K99+L99+Q99 -> 636 | J99: =T99+AD99+AN99+AX99+BH99+BR99+CB99+CL99 -> 8 | K99: =U99+AE99+AO99+AY99+BI99+BS99+CC99+CM99 -> 16 | L99: 576 | M99: 92 | N99: 88 | O99: 0 | P99: 0 | Q99: 36 | R99: 0 | CK99: =CL99+CM99+CN99+CS99 -> 636 | CL99: =CL101+CL102 -> 8 | CM99: =CM101+CM102 -> 16 | CN99: =CN101+CN102+CN104+CN106 -> 576 | CO99: 92 | CP99: 88 | CQ99: 0 | CR99: 0 | CS99: =CS101+CS102+CS108 -> 36 | CV99: 518 | CW99: 118
A101: МДК.05.01 | B101: Организация приготовления, оформления и подготовки к реализации хлебобулочных, мучных кондитерских изделий | C101: 8 | I101: 40 | J101: 2 | K101: 4 | L101: 28 | M101: 10 | N101: 18 | Q101: 6 | CK101: 40 | CL101: 2 | CM101: 4 | CN101: 28 | CO101: 10 | CP101: 18 | CS101: 6 | CU101: 3 | CV101: 40
A102: МДК.05.02 | B102: Процессы приготовления, оформления и подготовки к реализации хлебобулочных, мучных кондитерских изделий | C102: 8 | I102: 176 | J102: 6 | K102: 12 | L102: 152 | M102: 82 | N102: 70 | Q102: 6 | CK102: 176 | CL102: 6 | CM102: 12 | CN102: 152 | CO102: 82 | CP102: 70 | CS102: 6 | CU102: 3 | CV102: 130 | CW102: 46
A104: УП.05.01 | B104: Учебная практика по приготовлению, оформлению и подготовке к реализации хлебобулочных, мучных кондитерских изделий разнообразного ассортимента | D104: 8 | F104: РП | H104: час | I104: 144 | L104: 144 | M104: нед | N104: 4 | S104: час | W104: нед | AC104: час | AG104: нед | AM104: час | AQ104: нед | AW104: час | BA104: нед | BG104: час | BK104: нед | BQ104: час | BU104: нед | CA104: час | CE104: нед | CK104: час | CN104: 144 | CO104: нед | CP104: 4 | CU104: 3 | CV104: 108 | CW104: 36
A106: ПП.05.01 | B106: Производственная практика по приготовлению, оформлению и подготовке к реализации хлебобулочных, мучных кондитерских изделий разнообразного ассортимента | E106: 8 | F106: РП | H106: час | I106: 252 | L106: 252 | M106: нед | N106: 7 | S106: час | W106: нед | AC106: час | AG106: нед | AM106: час | AQ106: нед | AW106: час | BA106: нед | BG106: час | BK106: нед | BQ106: час | BU106: нед | CA106: час | CE106: нед | CK106: час | CN106: 252 | CO106: нед | CP106: 7 | CU106: 3 | CV106: 216 | CW106: 36
A108: ПM.05.ЭК | B108: Квалификационный экзамен | C108: 8 | I108: 24 | Q108: 24 | CK108: 24 | CS108: 24 | CV108: 24
B109: Всего часов по МДК | I109: 216 | L109: 180
A111: ПМ.06 | B111: Работа на контрольно-кассовой технике расчеты с покупателями | C111: 2 | D111: 1 | E111: 1 | I111: =J111+K111+L111+Q111 -> 134 | J111: =T111+AD111+AN111+AX111+BH111+BR111+CB111+CL111 -> 4 | K111: =U111+AE111+AO111+AY111+BI111+BS111+CC111+CM111 -> 4 | L111: 108 | M111: 16 | N111: 20 | O111: 0 | P111: 0 | Q111: 18 | R111: 0 | BQ111: =BR111+BS111+BT111+BY111 -> 134 | BR111: =BR113 -> 4 | BS111: =BS113 -> 4 | BT111: =BT113+BT115+BT117 -> 108 | BU111: 16 | BV111: 20 | BW111: 0 | BX111: 0 | BY111: =BY113+BY119 -> 18 | CW111: 134
A113: МДК.06.01 | B113: Эксплуатация контрольно-кассовой техники | C113: 6 | I113: 50 | J113: 4 | K113: 4 | L113: 36 | M113: 16 | N113: 20 | Q113: 6 | BQ113: 50 | BR113: 4 | BS113: 4 | BT113: 36 | BU113: 16 | BV113: 20 | BY113: 6 | CU113: 3 | CW113: 50
A115: УП.06.01 | B115: Учебная практика по эксплуатации контрольно-кассовой техники | D115: 6 | F115: РП | H115: час | I115: 36 | L115: 36 | M115: нед | N115: 1 | S115: час | W115: нед | AC115: час | AG115: нед | AM115: час | AQ115: нед | AW115: час | BA115: нед | BG115: час | BK115: нед | BQ115: час | BT115: 36 | BU115: нед | BV115: 1 | CA115: час | CE115: нед | CK115: час | CO115: нед | CU115: 3 | CW115: 36
A117: ПП.06.01 | B117: Производственная практика по работе на контрольно-кассовой технике, расчетам с покупателями | E117: 6 | F117: РП | H117: час | I117: 36 | L117: 36 | M117: нед | N117: 1 | S117: час | W117: нед | AC117: час | AG117: нед | AM117: час | AQ117: нед | AW117: час | BA117: нед | BG117: час | BK117: нед | BQ117: час | BT117: 36 | BU117: нед | BV117: 1 | CA117: час | CE117: нед | CK117: час | CO117: нед | CU117: 3 | CW117: 36
A119: ПM.06.ЭК | B119: Квалификационный экзамен | C119: 6 | I119: 12 | Q119: 12 | BQ119: 12 | BY119: 12 | CW119: 12
B120: Всего часов по МДК | I120: 50 | L120: 36
B123: Учебная и производственная практики | H123: час | I123: 1980 | L123: 1980 | M123: нед | N123: 60 | S123: час | W123: нед | AC123: час | AF123: 108 | AG123: нед | AH123: 3 | AM123: час | AP123: 108 | AQ123: нед | AR123: 3 | AW123: час | AZ123: 144 | BA123: нед | BB123: 4 | BG123: час | BJ123: 144 | BK123: нед | BL123: 4 | BQ123: час | BT123: 540 | BU123: нед | BV123: 15 | CA123: час | CD123: 540 | CE123: нед | CF123: 15 | CK123: час | CN123: 396 | CO123: нед | CP123: 11
B125: Учебная практика | H125: час | I125: 864 | L125: 864 | M125: нед | N125: 28 | S125: час | W125: нед | AC125: час | AF125: 108 | AG125: нед | AH125: 3 | AM125: час | AP125: 108 | AQ125: нед | AR125: 3 | AW125: час | AZ125: 144 | BA125: нед | BB125: 4 | BG125: час | BJ125: 144 | BK125: нед | BL125: 4 | BQ125: час | BT125: 324 | BU125: нед | BV125: 9 | CA125: час | CE125: нед | CK125: час | CN125: 144 | CO125: нед | CP125: 4
B126: Концентрированная | H126: час | I126: 864 | L126: 864 | M126: нед | N126: 28 | S126: час | W126: нед | AC126: час | AF126: 108 | AG126: нед | AH126: 3 | AM126: час | AP126: 108 | AQ126: нед | AR126: 3 | AW126: час | AZ126: 144 | BA126: нед | BB126: 4 | BG126: час | BJ126: 144 | BK126: нед | BL126: 4 | BQ126: час | BT126: 324 | BU126: нед | BV126: 9 | CA126: час | CE126: нед | CK126: час | CN126: 144 | CO126: нед | CP126: 4
B127: Рассредоточенная | H127: час | M127: нед | S127: час | W127: нед | AC127: час | AG127: нед | AM127: час | AQ127: нед | AW127: час | BA127: нед | BG127: час | BK127: нед | BQ127: час | BU127: нед | CA127: час | CE127: нед | CK127: час | CO127: нед
B129: Производственная практика | H129: час | I129: 1116 | L129: 1116 | M129: нед | N129: 32 | S129: час | W129: нед | AC129: час | AG129: нед | AM129: час | AQ129: нед | AW129: час | BA129: нед | BG129: час | BK129: нед | BQ129: час | BT129: 216 | BU129: нед | BV129: 6 | CA129: час | CD129: 540 | CE129: нед | CF129: 15 | CK129: час | CN129: 252 | CO129: нед | CP129: 7
B130: Концентрированная | H130: час | I130: 1116 | L130: 1116 | M130: нед | N130: 32 | S130: час | W130: нед | AC130: час | AG130: нед | AM130: час | AQ130: нед | AW130: час | BA130: нед | BG130: час | BK130: нед | BQ130: час | BT130: 216 | BU130: нед | BV130: 6 | CA130: час | CD130: 540 | CE130: нед | CF130: 15 | CK130: час | CN130: 252 | CO130: нед | CP130: 7
B131: Рассредоточенная | H131: час | M131: нед | S131: час | W131: нед | AC131: час | AG131: нед | AM131: час | AQ131: нед | AW131: час | BA131: нед | BG131: час | BK131: нед | BQ131: час | BU131: нед | CA131: час | CE131: нед | CK131: час | CO131: нед
B133: Государственная итоговая аттестация | H133: час | I133: 72 | L133: 72 | M133: нед | N133: 2 | S133: час | W133: нед | AC133: час | AG133: нед | AM133: час | AQ133: нед | AW133: час | BA133: нед | BG133: час | BK133: нед | BQ133: час | BU133: нед | CA133: час | CE133: нед | CK133: час | CN133: 72 | CO133: нед | CP133: 2
B134: Защита выпускной квалификационной работы | H134: час | I134: 72 | L134: 72 | M134: нед | N134: 2 | S134: час | W134: нед | AC134: час | AG134: нед | AM134: час | AQ134: нед | AW134: час | BA134: нед | BG134: час | BK134: нед | BQ134: час | BU134: нед | CA134: час | CE134: нед | CK134: час | CN134: 72 | CO134: нед | CP134: 2 | CV134: 72
B135: Проведение государственных экзаменов | H135: час | M135: нед | S135: час | W135: нед | AC135: час | AG135: нед | AM135: час | AQ135: нед | AW135: час | BA135: нед | BG135: час | BK135: нед | BQ135: час | BU135: нед | CA135: час | CE135: нед | CK135: час | CO135: нед
B137: КОНСУЛЬТАЦИИ по О | I137: 28 | S137: 2 | AC137: 2 | AW137: 20 | BG137: 4
B138: в т.ч. в период обучения по циклам | I138: 28 | S138: 2 | AC138: 2 | AW138: 20 | BG138: 4
B140: КОНСУЛЬТАЦИИ по ПП | I140: 92 | S140: 12 | AC140: 8 | AM140: 6 | AW140: 12 | BG140: 23 | BQ140: 11 | CK140: 20
B141: в т.ч. в период обучения по циклам | I141: 92 | S141: 12 | AC141: 8 | AM141: 6 | AW141: 12 | BG141: 23 | BQ141: 11 | CK141: 20
B143: ОБЪЕМ ОБРАЗОВАТЕЛЬНОЙ ПРОГРАММЫ В АКАДЕМИЧЕСКИХ ЧАСАХ | C143: 22 | D143: 15 | E143: 25 | I143: =I10+I33+I133 -> 5724 | J143: =J10+J33 -> 100 | K143: 120 | L143: =L10+L33+L133 -> 5360 | M143: 1969 | N143: 1314 | O143: 25 | P143: 0 | Q143: 144 | R143: 30 | S143: 612 | T143: 8 | U143: 14 | V143: 582 | W143: 341 | X143: 238 | Y143: 3 | Z143: 0 | AA143: 6 | AB143: 2 | AC143: 864 | AD143: 6 | AE143: 10 | AF143: 840 | AG143: 423 | AH143: 304 | AI143: 5 | AJ143: 0 | AK143: 6 | AL143: 2 | AM143: 612 | AN143: 6 | AO143: 6 | AP143: 600 | AQ143: 319 | AR143: 168 | AS143: 5 | AT143: 0 | AU143: 0 | AV143: 0 | AW143: 828 | AX143: 8 | AY143: 32 | AZ143: 740 | BA143: 408 | BB143: 176 | BC143: 12 | BD143: 0 | BE143: 30 | BF143: 18 | BG143: 612 | BH143: 13 | BI143: 27 | BJ143: 558 | BK143: 236 | BL143: 178 | BM143: 0 | BN143: 0 | BO143: 6 | BP143: 8 | BQ143: 828 | BR143: 15 | BS143: 11 | BT143: 778 | BU143: 102 | BV143: =BV10+BV33 -> 136 | BW143: 0 | BX143: 0 | BY143: 24 | BZ143: 0 | CA143: 576 | CB143: 0 | CC143: 0 | CD143: 540 | CE143: 0 | CF143: 0 | CG143: 0 | CH143: 0 | CI143: 36 | CJ143: 0 | CK143: =CL143+CM143+CS143+CN143 -> 792 | CL143: =CL10+CL33 -> 14 | CM143: 20 | CN143: =CN10+CN33+CN133 -> 722 | CO143: 140 | CP143: 114 | CQ143: 0 | CR143: 0 | CS143: 36 | CT143: 0 | CV143: 4826 | CW143: 898
B145: Экзамены (без учета физ. культуры) | S145: 1 | AC145: 2 | AW145: 6 | BG145: 2 | BQ145: 4 | CA145: 4 | CK145: 3
B146: Зачеты (без учета физ. культуры) | AM146: 2 | BQ146: 7 | CK146: 3
B147: Диффер. зачеты (без учета физ. культуры) | S147: 2 | AC147: 2 | AM147: 1 | AW147: 6 | BG147: 5 | BQ147: 2 | CA147: 4 | CK147: 2
B148: Курсовые проекты (без учета физ. культуры)
B149: Курсовые работы (без учета физ. культуры)

Sheet Комплесные
B1: № | C1: Вид контроля | D1: Наименование комплексного вида контроля | E1: Семестр | G1: [Семестр проведения комплексного вида контроля] Наименование дисциплины/МДК
B2: 1 | C2: Экз | D2: Комплексный экзамен | E2: 2 | F2: 2 | G2: [2] | H2: МДК.01.01 Организация приготовления, подготовки к реализации и хранения кулинарных полуфабрикатов
F3: 2 | G3: [2] | H3: МДК.01.02 Процессы приготовления, подготовки к реализации кулинарных полуфабрикатов
B4: 2 | C4: Экз | D4: Комплексный экзамен | E4: 4 | F4: 4 | G4: [4] | H4: МДК.02.01 Организация приготовления, подготовки к реализации и хранения горячих блюд, кулинарных изделий и закусок разнообразного ассортимента
F5: 4 | G5: [4] | H5: МДК.02.02 Процессы приготовления, подготовки к реализации горячих блюд, кулинарных изделий и закусок разнообразного ассортимента
B6: 3 | C6: Экз | D6: Комплексный экзамен | E6: 5 | F6: 5 | G6: [5] | H6: МДК.03.01 Организация приготовления, подготовки к реализации и хранения холодных блюд, кулинарных изделий и закусок разнообразного ассортимента
F7: 5 | G7: [5] | H7: МДК.03.02 Процессы приготовления, подготовки к реализации холодных блюд, кулинарных изделий и закусок разнообразного ассортимента
B8: 4 | C8: Экз | D8: Комплексный экзамен | E8: 6 | F8: 6 | G8: [6] | H8: МДК.04.01 Организация процессов приготовления, подготовки к реализации и хранения холодных и горячих десертов, напитков сложного ассортимента
F9: 6 | G9: [6] | H9: МДК.04.02 Процессы приготовления и подготовки к реализации холодных и горячих сладких блюд, десертов разнообразного ассортимента
B10: 5 | C10: Экз | D10: Комплексный экзамен | E10: 8 | F10: 8 | G10: [8] | H10: МДК.05.01 Организация приготовления, оформления и подготовки к реализации хлебобулочных, мучных кондитерских изделий
F11: 8 | G11: [8] | H11: МДК.05.02 Процессы приготовления, оформления и подготовки к реализации хлебобулочных, мучных кондитерских изделий
B12: 6 | C12: ЭкзМод | D12: Комплексный квалификационный экзамен | E12: 7 | F12: 7 | G12: [7] | H12: ПМ.01 Приготовление и подготовка к реализации полуфабрикатов для блюд, кулинарных изделий разнообразного ассортимента
F13: 7 | G13: [7] | H13: ПМ.02 Приготовление, оформление и подготовка к реализации горячих блюд, кулинарных изделий, закусок разнообразного ассортимента
F14: 7 | G14: [7] | H14: ПМ.03 Приготовление, оформление и подготовка к реализации холодных блюд, кулинарных изделий, закусок разнообразного ассортимента
F15: 7 | G15: [7] | H15: ПМ.04 Приготовление, оформление и подготовка к реализации холодных и горячих сладких блюд, десертов, напитков разнообразного ассортимента
B16: 7 | C16: Диф. зач | D16: Комплексный диф. зачет | E16: 7 | F16: 7 | G16: [7] | H16: ПП.01.01 Производственная практика по приготовлению и подготовке к реализации полуфабрикатов для блюд, кулинарных изделий разнообразного ассортимента
F17: 7 | G17: [7] | H17: ПП.02.01 Производственная практика по приготовлению, оформлению и подготовке к реализации горячих блюд, кулинарных изделий, закусок разнообразного ассортимента
F18: 7 | G18: [7] | H18: ПП.03.01 Производственная практика по приготовлению, оформлению и подготовке к реализации холодных блюд, кулинарных изделий, закусок разнообразного ассортимента
F19: 7 | G19: [7] | H19: ПП.04.01 Производственная практика по приготовлению, оформлению и подготовке к реализации холодных и горячих сладких блюд, десертов, напитков разнообразного ассортимента

Sheet Компетенции
A1: Индекс | E1: Содержание
A2: ОК 01. | D2: 1 | E2: Выбирать способы решения задач профессиональной деятельности применительно к различным контекстам
B3: ОП.01 | D3: 2 | E3: Основы микробиологии, физиологии питания, санитарии и гигиены
B4: ОП.02 | D4: 3 | E4: Основы товароведения продовольственных товаров
B5: ОП.03 | D5: 4 | E5: Техническое оснащение и организация рабочего места
B6: ОП.05 | D6: 6 | E6: Основы калькуляции и учета
B7: ОП.06 | D7: 7 | E7: Охрана труда
B8: ОП.07 | D8: 8 | E8: Иностранный язык в профессиональной деятельности
B9: ОП.08 | D9: 9 | E9: Безопасность жизнедеятельности
B10: ОП.12 | D10: 10 | E10: Основы предпринимательской деятельности
B11: МДК.01.01 | D11: 11 | E11: Организация приготовления, подготовки к реализации и хранения кулинарных полуфабрикатов
B12: МДК.01.02 | D12: 12 | E12: Процессы приготовления, подготовки к реализации кулинарных полуфабрикатов
B13: УП.01.01 | D13: 13 | E13: Учебная практика по приготовлению и подготовке к реализации полуфабрикатов для блюд, кулинарных изделий разнообразного ассортимента
B14: ПП.01.01 | D14: 14 | E14: Производственная практика по приготовлению и подготовке к реализации полуфабрикатов для блюд, кулинарных изделий разнообразного ассортимента
B15: МДК.02.01 | D15: 15 | E15: Организация приготовления, подготовки к реализации и хранения горячих блюд, кулинарных изделий и закусок разнообразного ассортимента
B16: МДК.02.02 | D16: 16 | E16: Процессы приготовления, подготовки к реализации горячих блюд, кулинарных изделий и закусок разнообразного ассортимента
B17: УП.02.01 | D17: 17 | E17: Учебная практика по приготовлению, оформлению и подготовке к реализации горячих блюд, кулинарных изделий, закусок разнообразного ассортимента
B18: ПП.02.01 | D18: 18 | E18: Производственная практика по приготовлению, оформлению и подготовке к реализации горячих блюд, кулинарных изделий, закусок разнообразного ассортимента
B19: МДК.03.01 | D19: 19 | E19: Организация приготовления, подготовки к реализации и хранения холодных блюд, кулинарных изделий и закусок разнообразного ассортимента
B20: МДК.03.02 | D20: 20 | E20: Процессы приготовления, подготовки к реализации холодных блюд, кулинарных изделий и закусок разнообразного ассортимента
B21: УП.03.01 | D21: 21 | E21: Учебная практика по приготовлению, оформлению и подготовке к реализации холодных блюд, кулинарных изделий, закусок разнообразного ассортимента
B22: ПП.03.01 | D22: 22 | E22: Производственная практика по приготовлению, оформлению и подготовке к реализации холодных блюд, кулинарных изделий, закусок разнообразного ассортимента
B23: МДК.04.01 | D23: 23 | E23: Организация процессов приготовления, подготовки к реализации и хранения холодных и горячих десертов, напитков сложного ассортимента
B24: МДК.04.02 | D24: 24 | E24: Процессы приготовления и подготовки к реализации холодных и горячих сладких блюд, десертов разнообразного ассортимента
B25: УП.04.01 | D25: 25 | E25: Учебная практика по приготовлению, оформлению и подготовке к реализации холодных и горячих сладких блюд, десертов, напитков разнообразного ассортимента
B26: ПП.04.01 | D26: 26 | E26: Производственная практика по приготовлению, оформлению и подготовке к реализации холодных и горячих сладких блюд, десертов, напитков разнообразного ассортимента
B27: МДК.05.01 | D27: 27 | E27: Организация приготовления, оформления и подготовки к реализации хлебобулочных, мучных кондитерских изделий
B28: МДК.05.02 | D28: 28 | E28: Процессы приготовления, оформления и подготовки к реализации хлебобулочных, мучных кондитерских изделий
B29: УП.05.01 | D29: 29 | E29: Учебная практика по приготовлению, оформлению и подготовке к реализации хлебобулочных, мучных кондитерских изделий разнообразного ассортимента
B30: ПП.05.01 | D30: 30 | E30: Производственная практика по приготовлению, оформлению и подготовке к реализации хлебобулочных, мучных кондитерских изделий разнообразного ассортимента
B31: МДК.06.01 | D31: 31 | E31: Эксплуатация контрольно-кассовой техники
B32: УП.06.01 | D32: 32 | E32: Учебная практика по эксплуатации контрольно-кассовой техники
B33: ПП.06.01 | D33: 33 | E33: Производственная практика по работе на контрольно-кассовой технике, расчетам с покупателями
D34: 34
D35: 35
D36: 36
D37: 37
D38: 38
D39: 39
D40: 40
D41: 41
D42: 42
D43: 43
D44: 44
D45: 45
D46: 46
D47: 47
D48: 48
D49: 49
D50: 50
D51: 51
D52: 52
D53: 53
D54: 54
D55: 55
D56: 56
D57: 57
D58: 58
D59: 59
D60: 60
D61: 61
D62: 62
D63: 63
D64: 64
D65: 65
D66: 66
D67: 67
D68: 68
D69: 69
D70: 70
D71: 71
D72: 72
D73: 73
D74: 74
D75: 75
D76: 76
D77: 77
D78: 78
D79: 79
D80: 80
D81: 81
A82: ОК 02. | D82: 1 | E82: Осуществлять поиск, анализ и интерпретацию информации, необходимой для выполнения задач профессиональной деятельности
B83: ОП.01 | D83: 2 | E83: Основы микробиологии, физиологии питания, санитарии и гигиены
B84: ОП.02 | D84: 3 | E84: Основы товароведения продовольственных товаров
B85: ОП.03 | D85: 4 | E85: Техническое оснащение и организация рабочего места
B86: ОП.04 | D86: 5 | E86: Экономические и правовые основы профессиональной деятельности
B87: ОП.05 | D87: 6 | E87: Основы калькуляции и учета
B88: ОП.06 | D88: 7 | E88: Охрана труда
B89: ОП.07 | D89: 8 | E89: Иностранный язык в профессиональной деятельности
B90: ОП.08 | D90: 9 | E90: Безопасность жизнедеятельности
B91: ОП.12 | D91: 10 | E91: Основы предпринимательской деятельности
D92: 11
D93: 12
D94: 13
D95: 14
D96: 15
D97: 16
D98: 17
D99: 18
D100: 19
D101: 20
D102: 21
D103: 22
D104: 23
D105: 24
D106: 25
D107: 26
D108: 27
D109: 28
D110: 29
D111: 30
D112: 31
D113: 32
D114: 33
D115: 34
D116: 35
D117: 36
D118: 37
D119: 38
D120: 39
D121: 40
D122: 41
D123: 42
D124: 43
D125: 44
D126: 45
D127: 46
D128: 47
D129: 48
D130: 49
D131: 50
D132: 51
D133: 52
D134: 53
D135: 54
D136: 55
D137: 56
D138: 57
D139: 58
D140: 59
D141: 60
D142: 61
D143: 62
D144: 63
D145: 64
D146: 65
D147: 66
D148: 67
D149: 68
D150: 69
D151: 70
D152: 71
D153: 72
D154: 73
D155: 74
D156: 75
D157: 76
D158: 77
D159: 78
D160: 79
D161: 80
D162: 81
A163: ОК 03. | D163: 1 | E163: Планировать и реализовывать собственное профессиональное и личностное развитие
B164: ОП.01 | D164: 2 | E164: Основы микробиологии, физиологии питания, санитарии и гигиены
B165: ОП.02 | D165: 3 | E165: Основы товароведения продовольственных товаров
B166: ОП.03 | D166: 4 | E166: Техническое оснащение и организация рабочего места
B167: ОП.05 | D167: 6 | E167: Основы калькуляции и учета
B168: ОП.06 | D168: 7 | E168: Охрана труда
B169: ОП.07 | D169: 8 | E169: Иностранный язык в профессиональной деятельности
B170: ОП.08 | D170: 9 | E170: Безопасность жизнедеятельности
B171: ОП.11 | D171: 10 | E171: Основы эффективного поведения на рынке труда
D172: 11
D173: 12
D174: 13
D175: 14
D176: 15
D177: 16
D178: 17
D179: 18
D180: 19
D181: 20
D182: 21
D183: 22
D184: 23
D185: 24
D186: 25
D187: 26
D188: 27
D189: 28
D190: 29
D191: 30
D192: 31
D193: 32
D194: 33
D195: 34
D196: 35
D197: 36
D198: 37
D199: 38
D200: 39
... 2298 more rows

Sheet Компетенции(2)
A2: 0 | B2: 1 | C2: ОДБ | E2: Базовые дисциплины
B3: 2
B4: 3
B5: 4
B6: 5
B7: 6
B8: 7
B9: 8
A10: 0 | B10: 1 | C10: ОДБ.01 | D10: 3 | E10: Русский язык
B11: 2
B12: 3
B13: 4
B14: 5
B15: 6
B16: 7
B17: 8
A18: 1 | B18: 1 | C18: ОДБ.02 | D18: 3 | E18: Литература
B19: 2
B20: 3
B21: 4
B22: 5
B23: 6
B24: 7
B25: 8
A26: 2 | B26: 1 | C26: ОДБ.03 | D26: 3 | E26: Иностранный язык
B27: 2
B28: 3
B29: 4
B30: 5
B31: 6
B32: 7
B33: 8
A34: 3 | B34: 1 | C34: ОДБ.04 | D34: 3 | E34: Математика
B35: 2
B36: 3
B37: 4
B38: 5
B39: 6
B40: 7
B41: 8
A42: 4 | B42: 1 | C42: ОДБ.05 | D42: 3 | E42: История
B43: 2
B44: 3
B45: 4
B46: 5
B47: 6
B48: 7
B49: 8
A50: 5 | B50: 1 | C50: ОДБ.06 | D50: 3 | E50: Основы безопасности жизнедеятельности
B51: 2
B52: 3
B53: 4
B54: 5
B55: 6
B56: 7
B57: 8
A58: 6 | B58: 1 | C58: ОДБ.07 | D58: 3 | E58: Физика
B59: 2
B60: 3
B61: 4
B62: 5
B63: 6
B64: 7
B65: 8
A66: 7 | B66: 1 | C66: ОДБ.08 | D66: 3 | E66: Астрономия
B67: 2
B68: 3
B69: 4
B70: 5
B71: 6
B72: 7
B73: 8
A74: 8 | B74: 1 | C74: ОДБ.09 | D74: 3 | E74: Физическая культура
B75: 2
B76: 3
B77: 4
B78: 5
B79: 6
B80: 7
B81: 8
A83: 1 | B83: 1 | C83: ОДП | E83: Профильные дисциплины
B84: 2
B85: 3
B86: 4
B87: 5
B88: 6
B89: 7
B90: 8
A91: 9 | B91: 1 | C91: ОДП.01 | D91: 4 | E91: Информатика
B92: 2
B93: 3
B94: 4
B95: 5
B96: 6
B97: 7
B98: 8
A99: 10 | B99: 1 | C99: ОДП.02 | D99: 4 | E99: Химия
B100: 2
B101: 3
B102: 4
B103: 5
B104: 6
B105: 7
B106: 8
A107: 11 | B107: 1 | C107: ОДП.03 | D107: 4 | E107: Биология
B108: 2
B109: 3
B110: 4
B111: 5
B112: 6
B113: 7
B114: 8
A116: 2 | B116: 1 | C116: ПОО | E116: Предлагаемые ОО
B117: 2
B118: 3
B119: 4
B120: 5
B121: 6
B122: 7
B123: 8
A124: 12 | B124: 1 | C124: ПОО.01 | D124: 44 | E124: География / Природа родного края
B125: 2
B126: 3
B127: 4
B128: 5
B129: 6
B130: 7
B131: 8
A132: 13 | B132: 1 | C132: ПОО.02 | D132: 44 | E132: Экология / Экологические основы природопользования
B133: 2
B134: 3
B135: 4
B136: 5
B137: 6
B138: 7
B139: 8
A140: 14 | B140: 1 | C140: ПОО.03 | D140: 44 | E140: Обществознание / История родного края
B141: 2
B142: 3
B143: 4
B144: 5
B145: 6
B146: 7
B147: 8
A148: 15 | B148: 1 | C148: ПОО.04 | D148: 44 | E148: Индивидуальный проект / Основы проектной деятельности
B149: 2
B150: 3
B151: 4
B152: 5
B153: 6
B154: 7
B155: 8
A157: 3 | B157: 1 | C157: ОПЦ | E157: Общепрофессиональный цикл | F157: ОК 01. | G157: ОК 02. | H157: ОК 03. | I157: ОК 04. | J157: ОК 05. | K157: ОК 06. | L157: ОК 07. | M157: ОК 08. | N157: ОК 09. | O157: ОК 10. | P157: ОК 11. | Q157: ПК 1.1.
B158: 2 | F158: ПК 1.2. | G158: ПК 1.3. | H158: ПК 1.4. | I158: ПК 2.1. | J158: ПК 2.2. | K158: ПК 2.3. | L158: ПК 2.4. | M158: ПК 2.5. | N158: ПК 2.6. | O158: ПК 2.7. | P158: ПК 2.8. | Q158: ПК 3.1.
B159: 3 | F159: ПК 3.2. | G159: ПК 3.3. | H159: ПК 3.4. | I159: ПК 3.5. | J159: ПК 3.6. | K159: ПК 4.1. | L159: ПК 4.2. | M159: ПК 4.3. | N159: ПК 4.4. | O159: ПК 4.5. | P159: ПК 5.1. | Q159: ПК 5.2.
B160: 4 | F160: ПК 5.3. | G160: ПК 5.4. | H160: ПК 5.5.
B161: 6
B162: 7
B163: 8
A164: 16 | B164: 1 | C164: ОП.01 | D164: 9 | E164: Основы микробиологии, физиологии питания, санитарии и гигиены | F164: ОК 01. | G164: ОК 02. | H164: ОК 03. | I164: ОК 04. | J164: ОК 05. | K164: ОК 06. | L164: ОК 07. | M164: ОК 09. | N164: ОК 10. | O164: ПК 1.1. | P164: ПК 1.2. | Q164: ПК 1.3.
B165: 2 | F165: ПК 1.4. | G165: ПК 2.1. | H165: ПК 2.2. | I165: ПК 2.3. | J165: ПК 2.4. | K165: ПК 2.5. | L165: ПК 2.6. | M165: ПК 2.7. | N165: ПК 2.8. | O165: ПК 3.1. | P165: ПК 3.2. | Q165: ПК 3.3.
B166: 3 | F166: ПК 3.4. | G166: ПК 3.5. | H166: ПК 3.6. | I166: ПК 4.1. | J166: ПК 4.2. | K166: ПК 4.3. | L166: ПК 4.4. | M166: ПК 4.5. | N166: ПК 5.1. | O166: ПК 5.2. | P166: ПК 5.3. | Q166: ПК 5.4.
B167: 4 | F167: ПК 5.5.
B168: 5
B169: 6
B170: 7
B171: 8
A172: 17 | B172: 1 | C172: ОП.02 | D172: 9 | E172: Основы товароведения продовольственных товаров | F172: ОК 01. | G172: ОК 02. | H172: ОК 03. | I172: ОК 04. | J172: ОК 05. | K172: ОК 06. | L172: ОК 07. | M172: ОК 09. | N172: ОК 10. | O172: ПК 1.1. | P172: ПК 1.2. | Q172: ПК 1.3.
B173: 2 | F173: ПК 1.4. | G173: ПК 2.1. | H173: ПК 2.2. | I173: ПК 2.3. | J173: ПК 2.4. | K173: ПК 2.5. | L173: ПК 2.6. | M173: ПК 2.7. | N173: ПК 2.8. | O173: ПК 3.1. | P173: ПК 3.2. | Q173: ПК 3.3.
B174: 3 | F174: ПК 3.4. | G174: ПК 3.5. | H174: ПК 3.6. | I174: ПК 4.1. | J174: ПК 4.2. | K174: ПК 4.3. | L174: ПК 4.4. | M174: ПК 4.5. | N174: ПК 5.1. | O174: ПК 5.2. | P174: ПК 5.3. | Q174: ПК 5.4.
B175: 4 | F175: ПК 5.5.
B176: 5
B177: 6
B178: 7
B179: 8
A180: 18 | B180: 1 | C180: ОП.03 | D180: 9 | E180: Техническое оснащение и организация рабочего места | F180: ОК 01. | G180: ОК 02. | H180: ОК 03. | I180: ОК 04. | J180: ОК 05. | K180: ОК 06. | L180: ОК 07. | M180: ОК 09. | N180: ОК 10. | O180: ПК 1.1. | P180: ПК 1.2. | Q180: ПК 1.3.
B181: 2 | F181: ПК 1.4. | G181: ПК 2.1. | H181: ПК 2.2. | I181: ПК 2.3. | J181: ПК 2.4. | K181: ПК 2.5. | L181: ПК 2.6. | M181: ПК 2.7. | N181: ПК 2.8. | O181: ПК 3.1. | P181: ПК 3.2. | Q181: ПК 3.3.
B182: 3 | F182: ПК 3.4. | G182: ПК 3.5. | H182: ПК 3.6. | I182: ПК 4.1. | J182: ПК 4.2. | K182: ПК 4.3. | L182: ПК 4.4. | M182: ПК 4.5. | N182: ПК 5.1. | O182: ПК 5.2. | P182: ПК 5.3. | Q182: ПК 5.4.
B183: 4 | F183: ПК 5.5.
B184: 6
B185: 7
B186: 8
A187: 19 | B187: 1 | C187: ОП.04 | D187: 9 | E187: Экономические и правовые основы профессиональной деятельности | F187: ОК 02. | G187: ОК 04. | H187: ОК 09. | I187: ОК 10. | J187: ОК 11.
B188: 6
B189: 7
B190: 8
A191: 20 | B191: 1 | C191: ОП.05 | D191: 9 | E191: Основы калькуляции и учета | F191: ОК 01. | G191: ОК 02. | H191: ОК 03. | I191: ОК 04. | J191: ОК 05. | K191: ОК 09. | L191: ОК 10. | M191: ПК 1.1. | N191: ПК 1.2. | O191: ПК 1.3. | P191: ПК 1.4. | Q191: ПК 2.1.
B192: 2 | F192: ПК 2.2. | G192: ПК 2.3. | H192: ПК 2.4. | I192: ПК 2.5. | J192: ПК 2.6. | K192: ПК 2.7. | L192: ПК 2.8. | M192: ПК 3.1. | N192: ПК 3.2. | O192: ПК 3.3. | P192: ПК 3.4. | Q192: ПК 3.5.
B193: 3 | F193: ПК 3.6. | G193: ПК 4.1. | H193: ПК 4.2. | I193: ПК 4.3. | J193: ПК 4.4. | K193: ПК 4.5. | L193: ПК 5.1. | M193: ПК 5.2. | N193: ПК 5.3. | O193: ПК 5.4. | P193: ПК 5.5.
B194: 5
B195: 6
B196: 7
B197: 8
A198: 21 | B198: 1 | C198: ОП.06 | D198: 9 | E198: Охрана труда | F198: ОК 01. | G198: ОК 02. | H198: ОК 03. | I198: ОК 04. | J198: ОК 05. | K198: ОК 06. | L198: ОК 07. | M198: ОК 09. | N198: ОК 10. | O198: ОК 11. | P198: ПК 1.1. | Q198: ПК 1.2.
B199: 2 | F199: ПК 1.3. | G199: ПК 1.4. | H199: ПК 2.1. | I199: ПК 2.2. | J199: ПК 2.3. | K199: ПК 2.4. | L199: ПК 2.5. | M199: ПК 2.6. | N199: ПК 2.7. | O199: ПК 2.8. | P199: ПК 3.1. | Q199: ПК 3.2.
B200: 3 | F200: ПК 3.3. | G200: ПК 3.4. | H200: ПК 3.5. | I200: ПК 3.6. | J200: ПК 4.1. | K200: ПК 4.2. | L200: ПК 4.3. | M200: ПК 4.4. | N200: ПК 4.5. | O200: ПК 5.1. | P200: ПК 5.2. | Q200: ПК 5.3.
B201: 4 | F201: ПК 5.4. | G201: ПК 5.5.
B202: 6
B203: 7
B204: 8
... 311 more rows

Sheet Кабинеты
A1: № | B1: Наименование
A2: 1 | B2: Кабинеты: социально-экономических дисциплин
A3: 2 | B3: иностранного языка
A4: 3 | B4: микробиологии санитарии и гигиены
A5: 4 | B5: безопасности жизнедеятельности и охраны труда
A6: 5 | B6: Лаборатории: товароведения продовольственных товаров
A7: 6 | B7: Технического оснащения и организации рабочего места
A8: 7 | B8: Мастерские: учебная кухня ресторана с зонами для приготовления холодных, горячих блюд, кулинарных изделий,сладких блюд, десертов и напитков
A9: 8 | B9: Учебный кондитерский цех
A10: 9 | B10: Спортивный комплекс: спортивный зал
A11: 10 | B11: открытый стадион широкого профиля с элементами полосы препятствий
A12: 11 | B12: стрелковый тир
A13: 12 | B13: Залы: библиотека, читальный зал с выходом в сеть интернет
A14: 13 | B14: Актовый зал

Sheet Пояснения
B1: Пояснения
B2: Настоящий учебный план государственного профессионального образовательного учреждения "Тяжинский агропромышленный техникум" ГПОУ ТАПТ разработан на основе Федерального государственного образовательного стандарта среднего профессионального образования утвержденного приказом Министерства образования и науки Российской Федерации № 1569 от 9 декабря 2016 года, зарегистрирован Министерством юстиции (рег. № 44898 от 22 декабря 2016 года) по прорфессии 43.01.09 "Повар, кондитер".рекомендаций по получению среднего общего образования с учетом требований федеральных государственных образовательных стандартов и получаемой профессии или специальности среднего профессионального образования (письмо Департамента государственной политики в сфере подготовки рабочих кадров и ДПО от 17.03.2015 г №06-259)
B3: Нормативный срок освоения основной профессиональной образовательной программы среднего профессионального образования 43.01.09 "Повар, кондитер" на базе основного общего образования составляет 3 года 10 месяцев. Объем обязательной нагрузки при очной форме обучения составляет 36 часов в неделю. Предусматривается шестидневная учебная неделя при прохождении учебной и производственной практики и пятидневная при изучении теоретического материала. Продолжительность учебных занятий составляет 90 минут (2 академических часа) разделенных 5 минутным перерывом. Продолжительность учебной и производственной практики 6 академических часов.
B4: В плане учебного процесса отражаются следующие формы контроля знаний студентов: (З) зачеты, (ДЗ) дифференцированный зачет, (Э) экзамен, эказмен квалификационный (ЭК),последний проходит в форме демонстрационного экзамена. Промежуточная аттестация в форме зачета или дифференцированного зачета проводится за счет времени отведенного на освоение соответствующих модулей, междисциплинарных кусов и дисциплин. Количество экзаменов в каждом учебном году для аттестации студентов очной формы не превышает 8, а количество зачетов и дифференцированных зачетов - 10 (в данное количество не входят зачеты и дифференцированные зачеты по физкультуре). Каждый семестр обучения в техникуме заканчивается промежуточной аттестацией. На промежуточную аттестацию в виде экзаменационной сессии предусматривается по ООП предусмотрено 4 недели. Экзаменационные сессии проводятся рассредоточенно и концентрированно, во 1-4 семестрах. По дисциплине физическая культура проводится промежуточная аттестация в каждом из семестров на протяжении которых изучается дисциплина. По всем МДК предусмотрены экзамены, в рамках модуля комплексные. По профессиональным модулям проводят экзамен квалификационный, в т.ч. по ПМ 1-4 и ПМ 5-6 комплексный . По производственной практике комплексный дифференцированный зачет и учебной практике комплексный зачет в рамках профессиональных модулей
B5: Формирование вариативной части ОПОП Вариативная часть распределена между дисциплинами общепрофессионального цикла и междисциплинарными курсами в объеме 898 часов , следующим образом: Дополнительно введенные новые дисциплины Русский язык и культура речи - 32 часа; Основы предпринимательской деятельности - 32 часа. Основы эффективного поведения на рынке труда – 32 часа. Основы эффективного поведения на рынке труда ориентированы на успешную адаптацию выпускников в условиях рынка труда, а также развитию ОК 03. Планировать и реализовывать собственное профессиональное и личностное различе. На развитие этой компетенции и ОК 11. Планировать предпринимательскую деятельность в профессиональной сфере направлена дисциплина Основы предпринимательской деятельности. Для развития коммуникативных умений и ОК 05. Осуществлять устную и письменную коммуникацию на государственном языке с учетом особенностей социального и культурного контекста, а также ОК 10. Пользоваться профессиональной документацией на государственом и иностранном языке направлена дисциплина Русский язык и культура речи. Сцелью расширения и углубления знаний и умений долбавлены часы в инвариантную часть: Техническое оснащение и организация рабочего места - 36 часов, Основы мирокобиологии, физиологии питания, санитарии и гигиены - 10 часов, Основы товароведения продовольственных товаров - 10 часов, Основы калькуляции и учета - 14 часов. С целью расширения основных видов деятельности в части формирования компетенций по приготовлению для детей дошкольного и школьного возраста, а также использованию региональных особенностей и сырья в приготовлении пищи в профессиональные модули добавлено ПМ 01 - 85 часов в т.ч. 72 ч практики, ПМ0 2 - 184 часов, в т.ч. 108 часов практики, ПМ 03 - 107 часов, в т.ч. 72 часа практика, в ПМ 04 - 104 часа в .т.ч. 72 часа практик, в ПМ 05 - 118 часов, в т.ч. 72 часа практики. Для формировиния дополнительного вида деятельности Работа на контрольно-кассовой технике и расчеты с покупателями введен дополнительный модуль ПМ 6 в объеме 134 часа в т.ч. практика 72 часа. 36 часов выделено на освоение физической культуры.
B6: Учебная и производственная практика реализуются концентрированно в т.чю на ьазе учреждений и организаций социальных партнеров.
B7: Самостоятельная работа в рамках ООП по общепрофессиональным дисциплинам выделено по 4 часа на дисциплины объемом до 36 часов, 6 часов на дисциплины большим объемом, в сумме 58 часа. На профессиональные модули в части освоения МДК объемом до 40 часов - 4 часа, 40 - 100 часов - 8 часов, 100 - 150 часов - 12 часов, 150 - 200 часов 16 часов, свыше 200 часов - 20 часов итого 88 часов. общий объем времени на самостоятельную работу 148 часов. 30 часов выделено на индивидуальный проект в рамках химии.
B8: Государственная итоговая аттестация проводится в форме защиты выпускной квалификационной работы в виде демонстрационного экзамена
B9: Согласовано

Sheet ЦМК
B1: Код | C1: Наименование ЦК

Sheet Start (hidden)
